Workbook

Sheet Feuil1
A1: Client | B1: Date | C1: Oppération | D1: Parcelle | E1: Culture | F1: Surface | G1: Produit | H1: Observation | I1: Campagne
A2: Florian | B2: 15/12/2014 | C2: Moisson | D2: Sous la route | E2: =VLOOKUP(Tableau1[Parcelle],Tableau7[[Parcelles]:[Campagne]],3,0) -> Blé | F2: =VLOOKUP(Tableau1[Parcelle],Tableau7[[Parcelles]:[Campagne]],2,0) -> 10.00 | G2: Urée 46% | I2: 2013/2014
A3: Florian | B3: 16/12/2014 | C3: Pulvérisation | D3: La plaine | E3: =VLOOKUP(Tableau1[Parcelle],Tableau7[[Parcelles]:[Campagne]],3,0) -> Tournesol | F3: =VLOOKUP(Tableau1[Parcelle],Tableau7[[Parcelles]:[Campagne]],2,0) -> 20.00 | I3: 2013/2014
A4: Florian | B4: 17/12/2014 | C4: Labour | D4: Coteau | E4: =VLOOKUP(Tableau1[Parcelle],Tableau7[[Parcelles]:[Campagne]],3,0) -> Tournesol | F4: =VLOOKUP(Tableau1[Parcelle],Tableau7[[Parcelles]:[Campagne]],2,0) -> 8.35 | I4: 2013/2014
A5: Florian | B5: 15/12/2014 | C5: Moisson | D5: Devant la maison | E5: =VLOOKUP(Tableau1[Parcelle],Tableau7[[Parcelles]:[Campagne]],3,0) -> Tournesol | F5: =VLOOKUP(Tableau1[Parcelle],Tableau7[[Parcelles]:[Campagne]],2,0) -> 2.35 | G5: Axial | I5: 2013/2014
A6: Florian | B6: 15/12/2014 | C6: Labour | D6: Coteau | E6: =VLOOKUP(Tableau1[Parcelle],Tableau7[[Parcelles]:[Campagne]],3,0) -> Tournesol | F6: =VLOOKUP(Tableau1[Parcelle],Tableau7[[Parcelles]:[Campagne]],2,0) -> 8.35 | I6: 2013/2014
A7: Durand | B7: 13/12/2014 | C7: Pulvérisation | D7: Bouscas | E7: =VLOOKUP(Tableau1[Parcelle],Tableau7[[Parcelles]:[Campagne]],3,0) -> Blé | F7: =VLOOKUP(Tableau1[Parcelle],Tableau7[[Parcelles]:[Campagne]],2,0) -> 10.00 | G7: Amonitrate 33.5% | I7: 2013/2014
A8: Florian | B8: 17/12/2014 | C8: Moisson | D8: sgdsfd | E8: =VLOOKUP(Tableau1[Parcelle],Tableau7[[Parcelles]:[Campagne]],3,0) -> Maïs | F8: =VLOOKUP(Tableau1[Parcelle],Tableau7[[Parcelles]:[Campagne]],2,0) -> 55.00 | G8: Urée 46% | I8: 2013/2014
A9: Durand | B9: 17/12/2014 | C9: Engrais | D9: sgdsfd | E9: =VLOOKUP(Tableau1[Parcelle],Tableau7[[Parcelles]:[Campagne]],3,0) -> Maïs | F9: =VLOOKUP(Tableau1[Parcelle],Tableau7[[Parcelles]:[Campagne]],2,0) -> 55.00 | G9: Amonitrate 33.5% | I9: 2013/2014
A10: Durand | B10: 18/12/2014 | C10: Moisson | D10: Sous la route | E10: =VLOOKUP(Tableau1[Parcelle],Tableau7[[Parcelles]:[Campagne]],3,0) -> Blé | F10: =VLOOKUP(Tableau1[Parcelle],Tableau7[[Parcelles]:[Campagne]],2,0) -> 10.00 | H10: 55 | I10: 2013/2014
A11: Durand | B11: 18/12/2014 | C11: Pulvérisation | D11: Sous la route | E11: =VLOOKUP(Tableau1[Parcelle],Tableau7[[Parcelles]:[Campagne]],3,0) -> Blé | F11: =VLOOKUP(Tableau1[Parcelle],Tableau7[[Parcelles]:[Campagne]],2,0) -> 10.00 | G11: Axial | I11: 2013/2014

Sheet Base
A1: Opération | B1: Tarrif | F1: Cultures | H1: Produits | J1: Client | K1: Parcelles | L1: Surface | M1: Culture | N1: Campagne | P1: Campagne | Q1: Campagne en cour (1 oui ; 0 non) | AD1: Clients | AE1: Adresse | AF1: Code postal | AG1: Ville | AH1: Téléphone | AJ1: Campagne | AK1: Client | AL1: Parcelle
A2: Labour | B2: 090.00€ | F2: Blé | H2: Roundup | J2: Durand | K2: Bouscas | L2: 010.00 | M2: Blé | N2: 2013/2014 | P2: 2013/2014 | Q2: 0 | AD2: Durand | AE2: St Gauzens | AF2: 81390 | AG2: ST Gauzens | AH2: 06-15-45-85-58 | AJ2: =IF(N2>0,Tableau7[[#This Row],[Campagne]],) -> 2013/2014 | AK2: =IF(J2>0,Tableau7[[#This Row],[Client]],) -> Durand | AL2: =IF(K2>0,Tableau7[[#This Row],[Parcelles]],) -> Bouscas
A3: Pulvérisation | B3: 015.00€ | F3: Maïs | H3: Amonitrate 33.5% | J3: Durand | K3: Sous la route | L3: 010.00 | M3: Blé | N3: 2013/2014 | P3: 2014/2015 | Q3: 0 | AD3: Florian | AE3: Le Bouscas | AF3: 81600 | AG3: Cadalen | AH3: 06-45-68-85-27 | AJ3: =IF(N3>0,Tableau7[[#This Row],[Campagne]],) -> 2013/2014 | AK3: =IF(J3>0,Tableau7[[#This Row],[Client]],) -> Durand | AL3: =IF(K3>0,Tableau7[[#This Row],[Parcelles]],) -> Sous la route
A4: Moisson | B4: 090.00€ | F4: Tournesol | H4: Urée 46% | J4: Florian | K4: La plaine | L4: 020.00 | M4: Tournesol | N4: 2013/2014 | P4: 2015/2016 | Q4: 0 | AD4: Moi | AE4: Callepe | AF4: 81120 | AG4: Lombers | AH4: 06-45-68-85-27 | AJ4: =IF(N4>0,Tableau7[[#This Row],[Campagne]],) -> 2013/2014 | AK4: =IF(J4>0,Tableau7[[#This Row],[Client]],) -> Florian | AL4: =IF(K4>0,Tableau7[[#This Row],[Parcelles]],) -> La plaine
A5: Engrais | B5: 015.00€ | F5: Colza | H5: Axial | J5: Florian | K5: Devant la maison | L5: 002.35 | M5: Tournesol | N5: 2013/2014 | P5: 2016/2017 | Q5: 1 | AD5: Tisse | AE5: Le Bouscas | AF5: 81600 | AG5: Cadalen | AJ5: =IF(N5>0,Tableau7[[#This Row],[Campagne]],) -> 2013/2014 | AK5: =IF(J5>0,Tableau7[[#This Row],[Client]],) -> Florian | AL5: =IF(K5>0,Tableau7[[#This Row],[Parcelles]],) -> Devant la maison
A6: Déchaumage | B6: 030.00€ | J6: Moi | K6: Coteau | L6: 008.35 | M6: Tournesol | N6: 2013/2014 | AJ6: =IF(N6>0,Tableau7[[#This Row],[Campagne]],) -> 2013/2014 | AK6: =IF(J6>0,Tableau7[[#This Row],[Client]],) -> Moi | AL6: =IF(K6>0,Tableau7[[#This Row],[Parcelles]],) -> Coteau
J7: Moi | K7: Au dessus | L7: 007.35 | M7: Blé | N7: 2013/2014 | AJ7: =IF(N7>0,Tableau7[[#This Row],[Campagne]],) -> 2013/2014 | AK7: =IF(J7>0,Tableau7[[#This Row],[Client]],) -> Moi | AL7: =IF(K7>0,Tableau7[[#This Row],[Parcelles]],) -> Au dessus
J8: Moi | K8: Devant la maison | L8: 086.50 | M8: Blé | N8: 2013/2014 | AJ8: =IF(N8>0,Tableau7[[#This Row],[Campagne]],) -> 2013/2014 | AK8: =IF(J8>0,Tableau7[[#This Row],[Client]],) -> Moi | AL8: =IF(K8>0,Tableau7[[#This Row],[Parcelles]],) -> Devant la maison
J9: Florian | K9: Plateau | L9: 015.00 | M9: Tournesol | N9: 2013/2014 | AJ9: =IF(N9>0,Tableau7[[#This Row],[Campagne]],) -> 2013/2014 | AK9: =IF(J9>0,Tableau7[[#This Row],[Client]],) -> Florian | AL9: =IF(K9>0,Tableau7[[#This Row],[Parcelles]],) -> Plateau
J10: Florian | K10: Essais | L10: 004.25 | M10: Blé | N10: 2014/2015 | AJ10: =IF(N10>0,Tableau7[[#This Row],[Campagne]],) -> 2014/2015 | AK10: =IF(J10>0,Tableau7[[#This Row],[Client]],) -> Florian | AL10: =IF(K10>0,Tableau7[[#This Row],[Parcelles]],) -> Essais
J11: Durand | K11: sgfsd | L11: 015.00 | M11: Tournesol | N11: 2013/2014 | AJ11: =IF(N11>0,Tableau7[[#This Row],[Campagne]],) -> 2013/2014 | AK11: =IF(J11>0,Tableau7[[#This Row],[Client]],) -> Durand | AL11: =IF(K11>0,Tableau7[[#This Row],[Parcelles]],) -> sgfsd
J12: Florian | K12: klhk | L12: 085.00 | M12: Maïs | N12: 2013/2014 | AJ12: =IF(N12>0,Tableau7[[#This Row],[Campagne]],) -> 2013/2014 | AK12: =IF(J12>0,Tableau7[[#This Row],[Client]],) -> Florian | AL12: =IF(K12>0,Tableau7[[#This Row],[Parcelles]],) -> klhk
J13: Florian | K13: sgdsfd | L13: 055.00 | M13: Maïs | N13: 2014/2015 | AJ13: =IF(N13>0,Tableau7[[#This Row],[Campagne]],) -> 2014/2015 | AK13: =IF(J13>0,Tableau7[[#This Row],[Client]],) -> Florian | AL13: =IF(K13>0,Tableau7[[#This Row],[Parcelles]],) -> sgdsfd
J14: Florian | K14: dsfh | L14: 045.00 | M14: Maïs | N14: 2014/2015 | AJ14: =IF(N14>0,Tableau7[[#This Row],[Campagne]],) -> 2014/2015 | AK14: =IF(J14>0,Tableau7[[#This Row],[Client]],) -> Florian | AL14: =IF(K14>0,Tableau7[[#This Row],[Parcelles]],) -> dsfh
J15: Moi | K15: zetrf | L15: 085.00 | M15: Tournesol | N15: 2014/2015 | AJ15: =IF(N15>0,Tableau7[[#This Row],[Campagne]],) -> 2014/2015 | AK15: =IF(J15>0,Tableau7[[#This Row],[Client]],) -> Moi | AL15: =IF(K15>0,Tableau7[[#This Row],[Parcelles]],) -> zetrf
J16: Florian | K16: Essais | L16: 045.00 | M16: Maïs | N16: 2013/2014 | AJ16: =IF(N16>0,Tableau7[[#This Row],[Campagne]],) -> 2013/2014 | AK16: =IF(J16>0,Tableau7[[#This Row],[Client]],) -> Florian | AL16: =IF(K16>0,Tableau7[[#This Row],[Parcelles]],) -> Essais
J17: Florian | K17: Essais0 | L17: 015.00 | M17: Maïs | N17: 2015/2016 | AJ17: =IF(N17>0,Tableau7[[#This Row],[Campagne]],) -> 2015/2016 | AK17: =IF(J17>0,Tableau7[[#This Row],[Client]],) -> Florian | AL17: =IF(K17>0,Tableau7[[#This Row],[Parcelles]],) -> Essais0
AJ18: =IF(N18>0,Tableau7[[#This Row],[Campagne]],) -> 0 | AK18: =IF(J18>0,Tableau7[[#This Row],[Client]],) -> 0 | AL18: =IF(K18>0,Tableau7[[#This Row],[Parcelles]],) -> 0
AJ19: =IF(N19>0,Tableau7[[#This Row],[Campagne]],) -> 0 | AK19: =IF(J19>0,Tableau7[[#This Row],[Client]],) -> 0 | AL19: =IF(K19>0,Tableau7[[#This Row],[Parcelles]],) -> 0
AJ20: =IF(N20>0,Tableau7[[#This Row],[Campagne]],) -> 0 | AK20: =IF(J20>0,Tableau7[[#This Row],[Client]],) -> 0 | AL20: =IF(K20>0,Tableau7[[#This Row],[Parcelles]],) -> 0
AJ21: =IF(N21>0,Tableau7[[#This Row],[Campagne]],) -> 0 | AK21: =IF(J21>0,Tableau7[[#This Row],[Client]],) -> 0 | AL21: =IF(K21>0,Tableau7[[#This Row],[Parcelles]],) -> 0
AJ22: =IF(N22>0,Tableau7[[#This Row],[Campagne]],) -> 0 | AK22: =IF(J22>0,Tableau7[[#This Row],[Client]],) -> 0 | AL22: =IF(K22>0,Tableau7[[#This Row],[Parcelles]],) -> 0
AJ23: =IF(N23>0,Tableau7[[#This Row],[Campagne]],) -> 0 | AK23: =IF(J23>0,Tableau7[[#This Row],[Client]],) -> 0 | AL23: =IF(K23>0,Tableau7[[#This Row],[Parcelles]],) -> 0
AJ24: =IF(N24>0,Tableau7[[#This Row],[Campagne]],) -> 0 | AK24: =IF(J24>0,Tableau7[[#This Row],[Client]],) -> 0 | AL24: =IF(K24>0,Tableau7[[#This Row],[Parcelles]],) -> 0
AJ25: =IF(N25>0,Tableau7[[#This Row],[Campagne]],) -> 0 | AK25: =IF(J25>0,Tableau7[[#This Row],[Client]],) -> 0 | AL25: =IF(K25>0,Tableau7[[#This Row],[Parcelles]],) -> 0
AJ26: =IF(N26>0,Tableau7[[#This Row],[Campagne]],) -> 0 | AK26: =IF(J26>0,Tableau7[[#This Row],[Client]],) -> 0 | AL26: =IF(K26>0,Tableau7[[#This Row],[Parcelles]],) -> 0
AJ27: =IF(N27>0,Tableau7[[#This Row],[Campagne]],) -> 0 | AK27: =IF(J27>0,Tableau7[[#This Row],[Client]],) -> 0 | AL27: =IF(K27>0,Tableau7[[#This Row],[Parcelles]],) -> 0
AJ28: =IF(N28>0,Tableau7[[#This Row],[Campagne]],) -> 0 | AK28: =IF(J28>0,Tableau7[[#This Row],[Client]],) -> 0 | AL28: =IF(K28>0,Tableau7[[#This Row],[Parcelles]],) -> 0
AJ29: =IF(N29>0,Tableau7[[#This Row],[Campagne]],) -> 0 | AK29: =IF(J29>0,Tableau7[[#This Row],[Client]],) -> 0 | AL29: =IF(K29>0,Tableau7[[#This Row],[Parcelles]],) -> 0
AJ30: =IF(N30>0,Tableau7[[#This Row],[Campagne]],) -> 0 | AK30: =IF(J30>0,Tableau7[[#This Row],[Client]],) -> 0 | AL30: =IF(K30>0,Tableau7[[#This Row],[Parcelles]],) -> 0
AJ31: =IF(N31>0,Tableau7[[#This Row],[Campagne]],) -> 0 | AK31: =IF(J31>0,Tableau7[[#This Row],[Client]],) -> 0 | AL31: =IF(K31>0,Tableau7[[#This Row],[Parcelles]],) -> 0
AJ32: =IF(N32>0,Tableau7[[#This Row],[Campagne]],) -> 0 | AK32: =IF(J32>0,Tableau7[[#This Row],[Client]],) -> 0 | AL32: =IF(K32>0,Tableau7[[#This Row],[Parcelles]],) -> 0
AJ33: =IF(N33>0,Tableau7[[#This Row],[Campagne]],) -> 0 | AK33: =IF(J33>0,Tableau7[[#This Row],[Client]],) -> 0 | AL33: =IF(K33>0,Tableau7[[#This Row],[Parcelles]],) -> 0
AJ34: =IF(N34>0,Tableau7[[#This Row],[Campagne]],) -> 0 | AK34: =IF(J34>0,Tableau7[[#This Row],[Client]],) -> 0 | AL34: =IF(K34>0,Tableau7[[#This Row],[Parcelles]],) -> 0
AJ35: =IF(N35>0,Tableau7[[#This Row],[Campagne]],) -> 0 | AK35: =IF(J35>0,Tableau7[[#This Row],[Client]],) -> 0 | AL35: =IF(K35>0,Tableau7[[#This Row],[Parcelles]],) -> 0
AJ36: =IF(N36>0,Tableau7[[#This Row],[Campagne]],) -> 0 | AK36: =IF(J36>0,Tableau7[[#This Row],[Client]],) -> 0 | AL36: =IF(K36>0,Tableau7[[#This Row],[Parcelles]],) -> 0
AJ37: =IF(N37>0,Tableau7[[#This Row],[Campagne]],) -> 0 | AK37: =IF(J37>0,Tableau7[[#This Row],[Client]],) -> 0 | AL37: =IF(K37>0,Tableau7[[#This Row],[Parcelles]],) -> 0
AJ38: =IF(N38>0,Tableau7[[#This Row],[Campagne]],) -> 0 | AK38: =IF(J38>0,Tableau7[[#This Row],[Client]],) -> 0 | AL38: =IF(K38>0,Tableau7[[#This Row],[Parcelles]],) -> 0
AJ39: =IF(N39>0,Tableau7[[#This Row],[Campagne]],) -> 0 | AK39: =IF(J39>0,Tableau7[[#This Row],[Client]],) -> 0 | AL39: =IF(K39>0,Tableau7[[#This Row],[Parcelles]],) -> 0
AJ40: =IF(N40>0,Tableau7[[#This Row],[Campagne]],) -> 0 | AK40: =IF(J40>0,Tableau7[[#This Row],[Client]],) -> 0 | AL40: =IF(K40>0,Tableau7[[#This Row],[Parcelles]],) -> 0
AJ41: =IF(N41>0,Tableau7[[#This Row],[Campagne]],) -> 0 | AK41: =IF(J41>0,Tableau7[[#This Row],[Client]],) -> 0 | AL41: =IF(K41>0,Tableau7[[#This Row],[Parcelles]],) -> 0
AJ42: =IF(N42>0,Tableau7[[#This Row],[Campagne]],) -> 0 | AK42: =IF(J42>0,Tableau7[[#This Row],[Client]],) -> 0 | AL42: =IF(K42>0,Tableau7[[#This Row],[Parcelles]],) -> 0
AJ43: =IF(N43>0,Tableau7[[#This Row],[Campagne]],) -> 0 | AK43: =IF(J43>0,Tableau7[[#This Row],[Client]],) -> 0 | AL43: =IF(K43>0,Tableau7[[#This Row],[Parcelles]],) -> 0
AJ44: =IF(N44>0,Tableau7[[#This Row],[Campagne]],) -> 0 | AK44: =IF(J44>0,Tableau7[[#This Row],[Client]],) -> 0 | AL44: =IF(K44>0,Tableau7[[#This Row],[Parcelles]],) -> 0
AJ45: =IF(N45>0,Tableau7[[#This Row],[Campagne]],) -> 0 | AK45: =IF(J45>0,Tableau7[[#This Row],[Client]],) -> 0 | AL45: =IF(K45>0,Tableau7[[#This Row],[Parcelles]],) -> 0
AJ46: =IF(N46>0,Tableau7[[#This Row],[Campagne]],) -> 0 | AK46: =IF(J46>0,Tableau7[[#This Row],[Client]],) -> 0 | AL46: =IF(K46>0,Tableau7[[#This Row],[Parcelles]],) -> 0
AJ47: =IF(N47>0,Tableau7[[#This Row],[Campagne]],) -> 0 | AK47: =IF(J47>0,Tableau7[[#This Row],[Client]],) -> 0 | AL47: =IF(K47>0,Tableau7[[#This Row],[Parcelles]],) -> 0
AJ48: =IF(N48>0,Tableau7[[#This Row],[Campagne]],) -> 0 | AK48: =IF(J48>0,Tableau7[[#This Row],[Client]],) -> 0 | AL48: =IF(K48>0,Tableau7[[#This Row],[Parcelles]],) -> 0
AJ49: =IF(N49>0,Tableau7[[#This Row],[Campagne]],) -> 0 | AK49: =IF(J49>0,Tableau7[[#This Row],[Client]],) -> 0 | AL49: =IF(K49>0,Tableau7[[#This Row],[Parcelles]],) -> 0
AJ50: =IF(N50>0,Tableau7[[#This Row],[Campagne]],) -> 0 | AK50: =IF(J50>0,Tableau7[[#This Row],[Client]],) -> 0 | AL50: =IF(K50>0,Tableau7[[#This Row],[Parcelles]],) -> 0
AJ51: =IF(N51>0,Tableau7[[#This Row],[Campagne]],) -> 0 | AK51: =IF(J51>0,Tableau7[[#This Row],[Client]],) -> 0 | AL51: =IF(K51>0,Tableau7[[#This Row],[Parcelles]],) -> 0
AJ52: =IF(N52>0,Tableau7[[#This Row],[Campagne]],) -> 0 | AK52: =IF(J52>0,Tableau7[[#This Row],[Client]],) -> 0 | AL52: =IF(K52>0,Tableau7[[#This Row],[Parcelles]],) -> 0
AJ53: =IF(N53>0,Tableau7[[#This Row],[Campagne]],) -> 0 | AK53: =IF(J53>0,Tableau7[[#This Row],[Client]],) -> 0 | AL53: =IF(K53>0,Tableau7[[#This Row],[Parcelles]],) -> 0
AJ54: =IF(N54>0,Tableau7[[#This Row],[Campagne]],) -> 0 | AK54: =IF(J54>0,Tableau7[[#This Row],[Client]],) -> 0 | AL54: =IF(K54>0,Tableau7[[#This Row],[Parcelles]],) -> 0
AJ55: =IF(N55>0,Tableau7[[#This Row],[Campagne]],) -> 0 | AK55: =IF(J55>0,Tableau7[[#This Row],[Client]],) -> 0 | AL55: =IF(K55>0,Tableau7[[#This Row],[Parcelles]],) -> 0
AJ56: =IF(N56>0,Tableau7[[#This Row],[Campagne]],) -> 0 | AK56: =IF(J56>0,Tableau7[[#This Row],[Client]],) -> 0 | AL56: =IF(K56>0,Tableau7[[#This Row],[Parcelles]],) -> 0
AJ57: =IF(N57>0,Tableau7[[#This Row],[Campagne]],) -> 0 | AK57: =IF(J57>0,Tableau7[[#This Row],[Client]],) -> 0 | AL57: =IF(K57>0,Tableau7[[#This Row],[Parcelles]],) -> 0
AJ58: =IF(N58>0,Tableau7[[#This Row],[Campagne]],) -> 0 | AK58: =IF(J58>0,Tableau7[[#This Row],[Client]],) -> 0 | AL58: =IF(K58>0,Tableau7[[#This Row],[Parcelles]],) -> 0
AJ59: =IF(N59>0,Tableau7[[#This Row],[Campagne]],) -> 0 | AK59: =IF(J59>0,Tableau7[[#This Row],[Client]],) -> 0 | AL59: =IF(K59>0,Tableau7[[#This Row],[Parcelles]],) -> 0
AJ60: =IF(N60>0,Tableau7[[#This Row],[Campagne]],) -> 0 | AK60: =IF(J60>0,Tableau7[[#This Row],[Client]],) -> 0 | AL60: =IF(K60>0,Tableau7[[#This Row],[Parcelles]],) -> 0
AJ61: =IF(N61>0,Tableau7[[#This Row],[Campagne]],) -> 0 | AK61: =IF(J61>0,Tableau7[[#This Row],[Client]],) -> 0 | AL61: =IF(K61>0,Tableau7[[#This Row],[Parcelles]],) -> 0
AJ62: =IF(N62>0,Tableau7[[#This Row],[Campagne]],) -> 0 | AK62: =IF(J62>0,Tableau7[[#This Row],[Client]],) -> 0 | AL62: =IF(K62>0,Tableau7[[#This Row],[Parcelles]],) -> 0
AJ63: =IF(N63>0,Tableau7[[#This Row],[Campagne]],) -> 0 | AK63: =IF(J63>0,Tableau7[[#This Row],[Client]],) -> 0 | AL63: =IF(K63>0,Tableau7[[#This Row],[Parcelles]],) -> 0
AJ64: =IF(N64>0,Tableau7[[#This Row],[Campagne]],) -> 0 | AK64: =IF(J64>0,Tableau7[[#This Row],[Client]],) -> 0 | AL64: =IF(K64>0,Tableau7[[#This Row],[Parcelles]],) -> 0
AJ65: =IF(N65>0,Tableau7[[#This Row],[Campagne]],) -> 0 | AK65: =IF(J65>0,Tableau7[[#This Row],[Client]],) -> 0 | AL65: =IF(K65>0,Tableau7[[#This Row],[Parcelles]],) -> 0
AJ66: =IF(N66>0,Tableau7[[#This Row],[Campagne]],) -> 0 | AK66: =IF(J66>0,Tableau7[[#This Row],[Client]],) -> 0 | AL66: =IF(K66>0,Tableau7[[#This Row],[Parcelles]],) -> 0
AJ67: =IF(N67>0,Tableau7[[#This Row],[Campagne]],) -> 0 | AK67: =IF(J67>0,Tableau7[[#This Row],[Client]],) -> 0 | AL67: =IF(K67>0,Tableau7[[#This Row],[Parcelles]],) -> 0
AJ68: =IF(N68>0,Tableau7[[#This Row],[Campagne]],) -> 0 | AK68: =IF(J68>0,Tableau7[[#This Row],[Client]],) -> 0 | AL68: =IF(K68>0,Tableau7[[#This Row],[Parcelles]],) -> 0
AJ69: =IF(N69>0,Tableau7[[#This Row],[Campagne]],) -> 0 | AK69: =IF(J69>0,Tableau7[[#This Row],[Client]],) -> 0 | AL69: =IF(K69>0,Tableau7[[#This Row],[Parcelles]],) -> 0
AJ70: =IF(N70>0,Tableau7[[#This Row],[Campagne]],) -> 0 | AK70: =IF(J70>0,Tableau7[[#This Row],[Client]],) -> 0 | AL70: =IF(K70>0,Tableau7[[#This Row],[Parcelles]],) -> 0
AJ71: =IF(N71>0,Tableau7[[#This Row],[Campagne]],) -> 0 | AK71: =IF(J71>0,Tableau7[[#This Row],[Client]],) -> 0 | AL71: =IF(K71>0,Tableau7[[#This Row],[Parcelles]],) -> 0
AJ72: =IF(N72>0,Tableau7[[#This Row],[Campagne]],) -> 0 | AK72: =IF(J72>0,Tableau7[[#This Row],[Client]],) -> 0 | AL72: =IF(K72>0,Tableau7[[#This Row],[Parcelles]],) -> 0
AJ73: =IF(N73>0,Tableau7[[#This Row],[Campagne]],) -> 0 | AK73: =IF(J73>0,Tableau7[[#This Row],[Client]],) -> 0 | AL73: =IF(K73>0,Tableau7[[#This Row],[Parcelles]],) -> 0
AJ74: =IF(N74>0,Tableau7[[#This Row],[Campagne]],) -> 0 | AK74: =IF(J74>0,Tableau7[[#This Row],[Client]],) -> 0 | AL74: =IF(K74>0,Tableau7[[#This Row],[Parcelles]],) -> 0
AJ75: =IF(N75>0,Tableau7[[#This Row],[Campagne]],) -> 0 | AK75: =IF(J75>0,Tableau7[[#This Row],[Client]],) -> 0 | AL75: =IF(K75>0,Tableau7[[#This Row],[Parcelles]],) -> 0
AJ76: =IF(N76>0,Tableau7[[#This Row],[Campagne]],) -> 0 | AK76: =IF(J76>0,Tableau7[[#This Row],[Client]],) -> 0 | AL76: =IF(K76>0,Tableau7[[#This Row],[Parcelles]],) -> 0
AJ77: =IF(N77>0,Tableau7[[#This Row],[Campagne]],) -> 0 | AK77: =IF(J77>0,Tableau7[[#This Row],[Client]],) -> 0 | AL77: =IF(K77>0,Tableau7[[#This Row],[Parcelles]],) -> 0
AJ78: =IF(N78>0,Tableau7[[#This Row],[Campagne]],) -> 0 | AK78: =IF(J78>0,Tableau7[[#This Row],[Client]],) -> 0 | AL78: =IF(K78>0,Tableau7[[#This Row],[Parcelles]],) -> 0
AJ79: =IF(N79>0,Tableau7[[#This Row],[Campagne]],) -> 0 | AK79: =IF(J79>0,Tableau7[[#This Row],[Client]],) -> 0 | AL79: =IF(K79>0,Tableau7[[#This Row],[Parcelles]],) -> 0
AJ80: =IF(N80>0,Tableau7[[#This Row],[Campagne]],) -> 0 | AK80: =IF(J80>0,Tableau7[[#This Row],[Client]],) -> 0 | AL80: =IF(K80>0,Tableau7[[#This Row],[Parcelles]],) -> 0
AJ81: =IF(N81>0,Tableau7[[#This Row],[Campagne]],) -> 0 | AK81: =IF(J81>0,Tableau7[[#This Row],[Client]],) -> 0 | AL81: =IF(K81>0,Tableau7[[#This Row],[Parcelles]],) -> 0
AJ82: =IF(N82>0,Tableau7[[#This Row],[Campagne]],) -> 0 | AK82: =IF(J82>0,Tableau7[[#This Row],[Client]],) -> 0 | AL82: =IF(K82>0,Tableau7[[#This Row],[Parcelles]],) -> 0
AJ83: =IF(N83>0,Tableau7[[#This Row],[Campagne]],) -> 0 | AK83: =IF(J83>0,Tableau7[[#This Row],[Client]],) -> 0 | AL83: =IF(K83>0,Tableau7[[#This Row],[Parcelles]],) -> 0
AJ84: =IF(N84>0,Tableau7[[#This Row],[Campagne]],) -> 0 | AK84: =IF(J84>0,Tableau7[[#This Row],[Client]],) -> 0 | AL84: =IF(K84>0,Tableau7[[#This Row],[Parcelles]],) -> 0
AJ85: =IF(N85>0,Tableau7[[#This Row],[Campagne]],) -> 0 | AK85: =IF(J85>0,Tableau7[[#This Row],[Client]],) -> 0 | AL85: =IF(K85>0,Tableau7[[#This Row],[Parcelles]],) -> 0
AJ86: =IF(N86>0,Tableau7[[#This Row],[Campagne]],) -> 0 | AK86: =IF(J86>0,Tableau7[[#This Row],[Client]],) -> 0 | AL86: =IF(K86>0,Tableau7[[#This Row],[Parcelles]],) -> 0
AJ87: =IF(N87>0,Tableau7[[#This Row],[Campagne]],) -> 0 | AK87: =IF(J87>0,Tableau7[[#This Row],[Client]],) -> 0 | AL87: =IF(K87>0,Tableau7[[#This Row],[Parcelles]],) -> 0
AJ88: =IF(N88>0,Tableau7[[#This Row],[Campagne]],) -> 0 | AK88: =IF(J88>0,Tableau7[[#This Row],[Client]],) -> 0 | AL88: =IF(K88>0,Tableau7[[#This Row],[Parcelles]],) -> 0
AJ89: =IF(N89>0,Tableau7[[#This Row],[Campagne]],) -> 0 | AK89: =IF(J89>0,Tableau7[[#This Row],[Client]],) -> 0 | AL89: =IF(K89>0,Tableau7[[#This Row],[Parcelles]],) -> 0
AJ90: =IF(N90>0,Tableau7[[#This Row],[Campagne]],) -> 0 | AK90: =IF(J90>0,Tableau7[[#This Row],[Client]],) -> 0 | AL90: =IF(K90>0,Tableau7[[#This Row],[Parcelles]],) -> 0
AJ91: =IF(N91>0,Tableau7[[#This Row],[Campagne]],) -> 0 | AK91: =IF(J91>0,Tableau7[[#This Row],[Client]],) -> 0 | AL91: =IF(K91>0,Tableau7[[#This Row],[Parcelles]],) -> 0
AJ92: =IF(N92>0,Tableau7[[#This Row],[Campagne]],) -> 0 | AK92: =IF(J92>0,Tableau7[[#This Row],[Client]],) -> 0 | AL92: =IF(K92>0,Tableau7[[#This Row],[Parcelles]],) -> 0
AJ93: =IF(N93>0,Tableau7[[#This Row],[Campagne]],) -> 0 | AK93: =IF(J93>0,Tableau7[[#This Row],[Client]],) -> 0 | AL93: =IF(K93>0,Tableau7[[#This Row],[Parcelles]],) -> 0
AJ94: =IF(N94>0,Tableau7[[#This Row],[Campagne]],) -> 0 | AK94: =IF(J94>0,Tableau7[[#This Row],[Client]],) -> 0 | AL94: =IF(K94>0,Tableau7[[#This Row],[Parcelles]],) -> 0
AJ95: =IF(N95>0,Tableau7[[#This Row],[Campagne]],) -> 0 | AK95: =IF(J95>0,Tableau7[[#This Row],[Client]],) -> 0 | AL95: =IF(K95>0,Tableau7[[#This Row],[Parcelles]],) -> 0
AJ96: =IF(N96>0,Tableau7[[#This Row],[Campagne]],) -> 0 | AK96: =IF(J96>0,Tableau7[[#This Row],[Client]],) -> 0 | AL96: =IF(K96>0,Tableau7[[#This Row],[Parcelles]],) -> 0
AJ97: =IF(N97>0,Tableau7[[#This Row],[Campagne]],) -> 0 | AK97: =IF(J97>0,Tableau7[[#This Row],[Client]],) -> 0 | AL97: =IF(K97>0,Tableau7[[#This Row],[Parcelles]],) -> 0
AJ98: =IF(N98>0,Tableau7[[#This Row],[Campagne]],) -> 0 | AK98: =IF(J98>0,Tableau7[[#This Row],[Client]],) -> 0 | AL98: =IF(K98>0,Tableau7[[#This Row],[Parcelles]],) -> 0
AJ99: =IF(N99>0,Tableau7[[#This Row],[Campagne]],) -> 0 | AK99: =IF(J99>0,Tableau7[[#This Row],[Client]],) -> 0 | AL99: =IF(K99>0,Tableau7[[#This Row],[Parcelles]],) -> 0
AJ100: =IF(N100>0,Tableau7[[#This Row],[Campagne]],) -> 0 | AK100: =IF(J100>0,Tableau7[[#This Row],[Client]],) -> 0 | AL100: =IF(K100>0,Tableau7[[#This Row],[Parcelles]],) -> 0
AJ101: =IF(N101>0,Tableau7[[#This Row],[Campagne]],) -> 0 | AK101: =IF(J101>0,Tableau7[[#This Row],[Client]],) -> 0 | AL101: =IF(K101>0,Tableau7[[#This Row],[Parcelles]],) -> 0
AJ102: =IF(N102>0,Tableau7[[#This Row],[Campagne]],) -> 0 | AK102: =IF(J102>0,Tableau7[[#This Row],[Client]],) -> 0 | AL102: =IF(K102>0,Tableau7[[#This Row],[Parcelles]],) -> 0
AJ103: =IF(N103>0,Tableau7[[#This Row],[Campagne]],) -> 0 | AK103: =IF(J103>0,Tableau7[[#This Row],[Client]],) -> 0 | AL103: =IF(K103>0,Tableau7[[#This Row],[Parcelles]],) -> 0
AJ104: =IF(N104>0,Tableau7[[#This Row],[Campagne]],) -> 0 | AK104: =IF(J104>0,Tableau7[[#This Row],[Client]],) -> 0 | AL104: =IF(K104>0,Tableau7[[#This Row],[Parcelles]],) -> 0
AJ105: =IF(N105>0,Tableau7[[#This Row],[Campagne]],) -> 0 | AK105: =IF(J105>0,Tableau7[[#This Row],[Client]],) -> 0 | AL105: =IF(K105>0,Tableau7[[#This Row],[Parcelles]],) -> 0
AJ106: =IF(N106>0,Tableau7[[#This Row],[Campagne]],) -> 0 | AK106: =IF(J106>0,Tableau7[[#This Row],[Client]],) -> 0 | AL106: =IF(K106>0,Tableau7[[#This Row],[Parcelles]],) -> 0
AJ107: =IF(N107>0,Tableau7[[#This Row],[Campagne]],) -> 0 | AK107: =IF(J107>0,Tableau7[[#This Row],[Client]],) -> 0 | AL107: =IF(K107>0,Tableau7[[#This Row],[Parcelles]],) -> 0
AJ108: =IF(N108>0,Tableau7[[#This Row],[Campagne]],) -> 0 | AK108: =IF(J108>0,Tableau7[[#This Row],[Client]],) -> 0 | AL108: =IF(K108>0,Tableau7[[#This Row],[Parcelles]],) -> 0
AJ109: =IF(N109>0,Tableau7[[#This Row],[Campagne]],) -> 0 | AK109: =IF(J109>0,Tableau7[[#This Row],[Client]],) -> 0 | AL109: =IF(K109>0,Tableau7[[#This Row],[Parcelles]],) -> 0
AJ110: =IF(N110>0,Tableau7[[#This Row],[Campagne]],) -> 0 | AK110: =IF(J110>0,Tableau7[[#This Row],[Client]],) -> 0 | AL110: =IF(K110>0,Tableau7[[#This Row],[Parcelles]],) -> 0
AJ111: =IF(N111>0,Tableau7[[#This Row],[Campagne]],) -> 0 | AK111: =IF(J111>0,Tableau7[[#This Row],[Client]],) -> 0 | AL111: =IF(K111>0,Tableau7[[#This Row],[Parcelles]],) -> 0
AJ112: =IF(N112>0,Tableau7[[#This Row],[Campagne]],) -> 0 | AK112: =IF(J112>0,Tableau7[[#This Row],[Client]],) -> 0 | AL112: =IF(K112>0,Tableau7[[#This Row],[Parcelles]],) -> 0
AJ113: =IF(N113>0,Tableau7[[#This Row],[Campagne]],) -> 0 | AK113: =IF(J113>0,Tableau7[[#This Row],[Client]],) -> 0 | AL113: =IF(K113>0,Tableau7[[#This Row],[Parcelles]],) -> 0
AJ114: =IF(N114>0,Tableau7[[#This Row],[Campagne]],) -> 0 | AK114: =IF(J114>0,Tableau7[[#This Row],[Client]],) -> 0 | AL114: =IF(K114>0,Tableau7[[#This Row],[Parcelles]],) -> 0
AJ115: =IF(N115>0,Tableau7[[#This Row],[Campagne]],) -> 0 | AK115: =IF(J115>0,Tableau7[[#This Row],[Client]],) -> 0 | AL115: =IF(K115>0,Tableau7[[#This Row],[Parcelles]],) -> 0
AJ116: =IF(N116>0,Tableau7[[#This Row],[Campagne]],) -> 0 | AK116: =IF(J116>0,Tableau7[[#This Row],[Client]],) -> 0 | AL116: =IF(K116>0,Tableau7[[#This Row],[Parcelles]],) -> 0
AJ117: =IF(N117>0,Tableau7[[#This Row],[Campagne]],) -> 0 | AK117: =IF(J117>0,Tableau7[[#This Row],[Client]],) -> 0 | AL117: =IF(K117>0,Tableau7[[#This Row],[Parcelles]],) -> 0
AJ118: =IF(N118>0,Tableau7[[#This Row],[Campagne]],) -> 0 | AK118: =IF(J118>0,Tableau7[[#This Row],[Client]],) -> 0 | AL118: =IF(K118>0,Tableau7[[#This Row],[Parcelles]],) -> 0
AJ119: =IF(N119>0,Tableau7[[#This Row],[Campagne]],) -> 0 | AK119: =IF(J119>0,Tableau7[[#This Row],[Client]],) -> 0 | AL119: =IF(K119>0,Tableau7[[#This Row],[Parcelles]],) -> 0
AJ120: =IF(N120>0,Tableau7[[#This Row],[Campagne]],) -> 0 | AK120: =IF(J120>0,Tableau7[[#This Row],[Client]],) -> 0 | AL120: =IF(K120>0,Tableau7[[#This Row],[Parcelles]],) -> 0
AJ121: =IF(N121>0,Tableau7[[#This Row],[Campagne]],) -> 0 | AK121: =IF(J121>0,Tableau7[[#This Row],[Client]],) -> 0 | AL121: =IF(K121>0,Tableau7[[#This Row],[Parcelles]],) -> 0
AJ122: =IF(N122>0,Tableau7[[#This Row],[Campagne]],) -> 0 | AK122: =IF(J122>0,Tableau7[[#This Row],[Client]],) -> 0 | AL122: =IF(K122>0,Tableau7[[#This Row],[Parcelles]],) -> 0
AJ123: =IF(N123>0,Tableau7[[#This Row],[Campagne]],) -> 0 | AK123: =IF(J123>0,Tableau7[[#This Row],[Client]],) -> 0 | AL123: =IF(K123>0,Tableau7[[#This Row],[Parcelles]],) -> 0
AJ124: =IF(N124>0,Tableau7[[#This Row],[Campagne]],) -> 0 | AK124: =IF(J124>0,Tableau7[[#This Row],[Client]],) -> 0 | AL124: =IF(K124>0,Tableau7[[#This Row],[Parcelles]],) -> 0
AJ125: =IF(N125>0,Tableau7[[#This Row],[Campagne]],) -> 0 | AK125: =IF(J125>0,Tableau7[[#This Row],[Client]],) -> 0 | AL125: =IF(K125>0,Tableau7[[#This Row],[Parcelles]],) -> 0
AJ126: =IF(N126>0,Tableau7[[#This Row],[Campagne]],) -> 0 | AK126: =IF(J126>0,Tableau7[[#This Row],[Client]],) -> 0 | AL126: =IF(K126>0,Tableau7[[#This Row],[Parcelles]],) -> 0
AJ127: =IF(N127>0,Tableau7[[#This Row],[Campagne]],) -> 0 | AK127: =IF(J127>0,Tableau7[[#This Row],[Client]],) -> 0 | AL127: =IF(K127>0,Tableau7[[#This Row],[Parcelles]],) -> 0
AJ128: =IF(N128>0,Tableau7[[#This Row],[Campagne]],) -> 0 | AK128: =IF(J128>0,Tableau7[[#This Row],[Client]],) -> 0 | AL128: =IF(K128>0,Tableau7[[#This Row],[Parcelles]],) -> 0
AJ129: =IF(N129>0,Tableau7[[#This Row],[Campagne]],) -> 0 | AK129: =IF(J129>0,Tableau7[[#This Row],[Client]],) -> 0 | AL129: =IF(K129>0,Tableau7[[#This Row],[Parcelles]],) -> 0
AJ130: =IF(N130>0,Tableau7[[#This Row],[Campagne]],) -> 0 | AK130: =IF(J130>0,Tableau7[[#This Row],[Client]],) -> 0 | AL130: =IF(K130>0,Tableau7[[#This Row],[Parcelles]],) -> 0
AJ131: =IF(N131>0,Tableau7[[#This Row],[Campagne]],) -> 0 | AK131: =IF(J131>0,Tableau7[[#This Row],[Client]],) -> 0 | AL131: =IF(K131>0,Tableau7[[#This Row],[Parcelles]],) -> 0
AJ132: =IF(N132>0,Tableau7[[#This Row],[Campagne]],) -> 0 | AK132: =IF(J132>0,Tableau7[[#This Row],[Client]],) -> 0 | AL132: =IF(K132>0,Tableau7[[#This Row],[Parcelles]],) -> 0
AJ133: =IF(N133>0,Tableau7[[#This Row],[Campagne]],) -> 0 | AK133: =IF(J133>0,Tableau7[[#This Row],[Client]],) -> 0 | AL133: =IF(K133>0,Tableau7[[#This Row],[Parcelles]],) -> 0
AJ134: =IF(N134>0,Tableau7[[#This Row],[Campagne]],) -> 0 | AK134: =IF(J134>0,Tableau7[[#This Row],[Client]],) -> 0 | AL134: =IF(K134>0,Tableau7[[#This Row],[Parcelles]],) -> 0
AJ135: =IF(N135>0,Tableau7[[#This Row],[Campagne]],) -> 0 | AK135: =IF(J135>0,Tableau7[[#This Row],[Client]],) -> 0 | AL135: =IF(K135>0,Tableau7[[#This Row],[Parcelles]],) -> 0
AJ136: =IF(N136>0,Tableau7[[#This Row],[Campagne]],) -> 0 | AK136: =IF(J136>0,Tableau7[[#This Row],[Client]],) -> 0 | AL136: =IF(K136>0,Tableau7[[#This Row],[Parcelles]],) -> 0
AJ137: =IF(N137>0,Tableau7[[#This Row],[Campagne]],) -> 0 | AK137: =IF(J137>0,Tableau7[[#This Row],[Client]],) -> 0 | AL137: =IF(K137>0,Tableau7[[#This Row],[Parcelles]],) -> 0
AJ138: =IF(N138>0,Tableau7[[#This Row],[Campagne]],) -> 0 | AK138: =IF(J138>0,Tableau7[[#This Row],[Client]],) -> 0 | AL138: =IF(K138>0,Tableau7[[#This Row],[Parcelles]],) -> 0
AJ139: =IF(N139>0,Tableau7[[#This Row],[Campagne]],) -> 0 | AK139: =IF(J139>0,Tableau7[[#This Row],[Client]],) -> 0 | AL139: =IF(K139>0,Tableau7[[#This Row],[Parcelles]],) -> 0
AJ140: =IF(N140>0,Tableau7[[#This Row],[Campagne]],) -> 0 | AK140: =IF(J140>0,Tableau7[[#This Row],[Client]],) -> 0 | AL140: =IF(K140>0,Tableau7[[#This Row],[Parcelles]],) -> 0
AJ141: =IF(N141>0,Tableau7[[#This Row],[Campagne]],) -> 0 | AK141: =IF(J141>0,Tableau7[[#This Row],[Client]],) -> 0 | AL141: =IF(K141>0,Tableau7[[#This Row],[Parcelles]],) -> 0
AJ142: =IF(N142>0,Tableau7[[#This Row],[Campagne]],) -> 0 | AK142: =IF(J142>0,Tableau7[[#This Row],[Client]],) -> 0 | AL142: =IF(K142>0,Tableau7[[#This Row],[Parcelles]],) -> 0
AJ143: =IF(N143>0,Tableau7[[#This Row],[Campagne]],) -> 0 | AK143: =IF(J143>0,Tableau7[[#This Row],[Client]],) -> 0 | AL143: =IF(K143>0,Tableau7[[#This Row],[Parcelles]],) -> 0
AJ144: =IF(N144>0,Tableau7[[#This Row],[Campagne]],) -> 0 | AK144: =IF(J144>0,Tableau7[[#This Row],[Client]],) -> 0 | AL144: =IF(K144>0,Tableau7[[#This Row],[Parcelles]],) -> 0
AJ145: =IF(N145>0,Tableau7[[#This Row],[Campagne]],) -> 0 | AK145: =IF(J145>0,Tableau7[[#This Row],[Client]],) -> 0 | AL145: =IF(K145>0,Tableau7[[#This Row],[Parcelles]],) -> 0
AJ146: =IF(N146>0,Tableau7[[#This Row],[Campagne]],) -> 0 | AK146: =IF(J146>0,Tableau7[[#This Row],[Client]],) -> 0 | AL146: =IF(K146>0,Tableau7[[#This Row],[Parcelles]],) -> 0
AJ147: =IF(N147>0,Tableau7[[#This Row],[Campagne]],) -> 0 | AK147: =IF(J147>0,Tableau7[[#This Row],[Client]],) -> 0 | AL147: =IF(K147>0,Tableau7[[#This Row],[Parcelles]],) -> 0
AJ148: =IF(N148>0,Tableau7[[#This Row],[Campagne]],) -> 0 | AK148: =IF(J148>0,Tableau7[[#This Row],[Client]],) -> 0 | AL148: =IF(K148>0,Tableau7[[#This Row],[Parcelles]],) -> 0
AJ149: =IF(N149>0,Tableau7[[#This Row],[Campagne]],) -> 0 | AK149: =IF(J149>0,Tableau7[[#This Row],[Client]],) -> 0 | AL149: =IF(K149>0,Tableau7[[#This Row],[Parcelles]],) -> 0
AJ150: =IF(N150>0,Tableau7[[#This Row],[Campagne]],) -> 0 | AK150: =IF(J150>0,Tableau7[[#This Row],[Client]],) -> 0 | AL150: =IF(K150>0,Tableau7[[#This Row],[Parcelles]],) -> 0
AJ151: =IF(N151>0,Tableau7[[#This Row],[Campagne]],) -> 0 | AK151: =IF(J151>0,Tableau7[[#This Row],[Client]],) -> 0 | AL151: =IF(K151>0,Tableau7[[#This Row],[Parcelles]],) -> 0
AJ152: =IF(N152>0,Tableau7[[#This Row],[Campagne]],) -> 0 | AK152: =IF(J152>0,Tableau7[[#This Row],[Client]],) -> 0 | AL152: =IF(K152>0,Tableau7[[#This Row],[Parcelles]],) -> 0
AJ153: =IF(N153>0,Tableau7[[#This Row],[Campagne]],) -> 0 | AK153: =IF(J153>0,Tableau7[[#This Row],[Client]],) -> 0 | AL153: =IF(K153>0,Tableau7[[#This Row],[Parcelles]],) -> 0
AJ154: =IF(N154>0,Tableau7[[#This Row],[Campagne]],) -> 0 | AK154: =IF(J154>0,Tableau7[[#This Row],[Client]],) -> 0 | AL154: =IF(K154>0,Tableau7[[#This Row],[Parcelles]],) -> 0
AJ155: =IF(N155>0,Tableau7[[#This Row],[Campagne]],) -> 0 | AK155: =IF(J155>0,Tableau7[[#This Row],[Client]],) -> 0 | AL155: =IF(K155>0,Tableau7[[#This Row],[Parcelles]],) -> 0
AJ156: =IF(N156>0,Tableau7[[#This Row],[Campagne]],) -> 0 | AK156: =IF(J156>0,Tableau7[[#This Row],[Client]],) -> 0 | AL156: =IF(K156>0,Tableau7[[#This Row],[Parcelles]],) -> 0
AJ157: =IF(N157>0,Tableau7[[#This Row],[Campagne]],) -> 0 | AK157: =IF(J157>0,Tableau7[[#This Row],[Client]],) -> 0 | AL157: =IF(K157>0,Tableau7[[#This Row],[Parcelles]],) -> 0
AJ158: =IF(N158>0,Tableau7[[#This Row],[Campagne]],) -> 0 | AK158: =IF(J158>0,Tableau7[[#This Row],[Client]],) -> 0 | AL158: =IF(K158>0,Tableau7[[#This Row],[Parcelles]],) -> 0
AJ159: =IF(N159>0,Tableau7[[#This Row],[Campagne]],) -> 0 | AK159: =IF(J159>0,Tableau7[[#This Row],[Client]],) -> 0 | AL159: =IF(K159>0,Tableau7[[#This Row],[Parcelles]],) -> 0
AJ160: =IF(N160>0,Tableau7[[#This Row],[Campagne]],) -> 0 | AK160: =IF(J160>0,Tableau7[[#This Row],[Client]],) -> 0 | AL160: =IF(K160>0,Tableau7[[#This Row],[Parcelles]],) -> 0
AJ161: =IF(N161>0,Tableau7[[#This Row],[Campagne]],) -> 0 | AK161: =IF(J161>0,Tableau7[[#This Row],[Client]],) -> 0 | AL161: =IF(K161>0,Tableau7[[#This Row],[Parcelles]],) -> 0
AJ162: =IF(N162>0,Tableau7[[#This Row],[Campagne]],) -> 0 | AK162: =IF(J162>0,Tableau7[[#This Row],[Client]],) -> 0 | AL162: =IF(K162>0,Tableau7[[#This Row],[Parcelles]],) -> 0
AJ163: =IF(N163>0,Tableau7[[#This Row],[Campagne]],) -> 0 | AK163: =IF(J163>0,Tableau7[[#This Row],[Client]],) -> 0 | AL163: =IF(K163>0,Tableau7[[#This Row],[Parcelles]],) -> 0
AJ164: =IF(N164>0,Tableau7[[#This Row],[Campagne]],) -> 0 | AK164: =IF(J164>0,Tableau7[[#This Row],[Client]],) -> 0 | AL164: =IF(K164>0,Tableau7[[#This Row],[Parcelles]],) -> 0
AJ165: =IF(N165>0,Tableau7[[#This Row],[Campagne]],) -> 0 | AK165: =IF(J165>0,Tableau7[[#This Row],[Client]],) -> 0 | AL165: =IF(K165>0,Tableau7[[#This Row],[Parcelles]],) -> 0
AJ166: =IF(N166>0,Tableau7[[#This Row],[Campagne]],) -> 0 | AK166: =IF(J166>0,Tableau7[[#This Row],[Client]],) -> 0 | AL166: =IF(K166>0,Tableau7[[#This Row],[Parcelles]],) -> 0
AJ167: =IF(N167>0,Tableau7[[#This Row],[Campagne]],) -> 0 | AK167: =IF(J167>0,Tableau7[[#This Row],[Client]],) -> 0 | AL167: =IF(K167>0,Tableau7[[#This Row],[Parcelles]],) -> 0
AJ168: =IF(N168>0,Tableau7[[#This Row],[Campagne]],) -> 0 | AK168: =IF(J168>0,Tableau7[[#This Row],[Client]],) -> 0 | AL168: =IF(K168>0,Tableau7[[#This Row],[Parcelles]],) -> 0
AJ169: =IF(N169>0,Tableau7[[#This Row],[Campagne]],) -> 0 | AK169: =IF(J169>0,Tableau7[[#This Row],[Client]],) -> 0 | AL169: =IF(K169>0,Tableau7[[#This Row],[Parcelles]],) -> 0
AJ170: =IF(N170>0,Tableau7[[#This Row],[Campagne]],) -> 0 | AK170: =IF(J170>0,Tableau7[[#This Row],[Client]],) -> 0 | AL170: =IF(K170>0,Tableau7[[#This Row],[Parcelles]],) -> 0
AJ171: =IF(N171>0,Tableau7[[#This Row],[Campagne]],) -> 0 | AK171: =IF(J171>0,Tableau7[[#This Row],[Client]],) -> 0 | AL171: =IF(K171>0,Tableau7[[#This Row],[Parcelles]],) -> 0
AJ172: =IF(N172>0,Tableau7[[#This Row],[Campagne]],) -> 0 | AK172: =IF(J172>0,Tableau7[[#This Row],[Client]],) -> 0 | AL172: =IF(K172>0,Tableau7[[#This Row],[Parcelles]],) -> 0
AJ173: =IF(N173>0,Tableau7[[#This Row],[Campagne]],) -> 0 | AK173: =IF(J173>0,Tableau7[[#This Row],[Client]],) -> 0 | AL173: =IF(K173>0,Tableau7[[#This Row],[Parcelles]],) -> 0
AJ174: =IF(N174>0,Tableau7[[#This Row],[Campagne]],) -> 0 | AK174: =IF(J174>0,Tableau7[[#This Row],[Client]],) -> 0 | AL174: =IF(K174>0,Tableau7[[#This Row],[Parcelles]],) -> 0
AJ175: =IF(N175>0,Tableau7[[#This Row],[Campagne]],) -> 0 | AK175: =IF(J175>0,Tableau7[[#This Row],[Client]],) -> 0 | AL175: =IF(K175>0,Tableau7[[#This Row],[Parcelles]],) -> 0
AJ176: =IF(N176>0,Tableau7[[#This Row],[Campagne]],) -> 0 | AK176: =IF(J176>0,Tableau7[[#This Row],[Client]],) -> 0 | AL176: =IF(K176>0,Tableau7[[#This Row],[Parcelles]],) -> 0
AJ177: =IF(N177>0,Tableau7[[#This Row],[Campagne]],) -> 0 | AK177: =IF(J177>0,Tableau7[[#This Row],[Client]],) -> 0 | AL177: =IF(K177>0,Tableau7[[#This Row],[Parcelles]],) -> 0
AJ178: =IF(N178>0,Tableau7[[#This Row],[Campagne]],) -> 0 | AK178: =IF(J178>0,Tableau7[[#This Row],[Client]],) -> 0 | AL178: =IF(K178>0,Tableau7[[#This Row],[Parcelles]],) -> 0
AJ179: =IF(N179>0,Tableau7[[#This Row],[Campagne]],) -> 0 | AK179: =IF(J179>0,Tableau7[[#This Row],[Client]],) -> 0 | AL179: =IF(K179>0,Tableau7[[#This Row],[Parcelles]],) -> 0
AJ180: =IF(N180>0,Tableau7[[#This Row],[Campagne]],) -> 0 | AK180: =IF(J180>0,Tableau7[[#This Row],[Client]],) -> 0 | AL180: =IF(K180>0,Tableau7[[#This Row],[Parcelles]],) -> 0
AJ181: =IF(N181>0,Tableau7[[#This Row],[Campagne]],) -> 0 | AK181: =IF(J181>0,Tableau7[[#This Row],[Client]],) -> 0 | AL181: =IF(K181>0,Tableau7[[#This Row],[Parcelles]],) -> 0
AJ182: =IF(N182>0,Tableau7[[#This Row],[Campagne]],) -> 0 | AK182: =IF(J182>0,Tableau7[[#This Row],[Client]],) -> 0 | AL182: =IF(K182>0,Tableau7[[#This Row],[Parcelles]],) -> 0
AJ183: =IF(N183>0,Tableau7[[#This Row],[Campagne]],) -> 0 | AK183: =IF(J183>0,Tableau7[[#This Row],[Client]],) -> 0 | AL183: =IF(K183>0,Tableau7[[#This Row],[Parcelles]],) -> 0
AJ184: =IF(N184>0,Tableau7[[#This Row],[Campagne]],) -> 0 | AK184: =IF(J184>0,Tableau7[[#This Row],[Client]],) -> 0 | AL184: =IF(K184>0,Tableau7[[#This Row],[Parcelles]],) -> 0
AJ185: =IF(N185>0,Tableau7[[#This Row],[Campagne]],) -> 0 | AK185: =IF(J185>0,Tableau7[[#This Row],[Client]],) -> 0 | AL185: =IF(K185>0,Tableau7[[#This Row],[Parcelles]],) -> 0
AJ186: =IF(N186>0,Tableau7[[#This Row],[Campagne]],) -> 0 | AK186: =IF(J186>0,Tableau7[[#This Row],[Client]],) -> 0 | AL186: =IF(K186>0,Tableau7[[#This Row],[Parcelles]],) -> 0
AJ187: =IF(N187>0,Tableau7[[#This Row],[Campagne]],) -> 0 | AK187: =IF(J187>0,Tableau7[[#This Row],[Client]],) -> 0 | AL187: =IF(K187>0,Tableau7[[#This Row],[Parcelles]],) -> 0
AJ188: =IF(N188>0,Tableau7[[#This Row],[Campagne]],) -> 0 | AK188: =IF(J188>0,Tableau7[[#This Row],[Client]],) -> 0 | AL188: =IF(K188>0,Tableau7[[#This Row],[Parcelles]],) -> 0
AJ189: =IF(N189>0,Tableau7[[#This Row],[Campagne]],) -> 0 | AK189: =IF(J189>0,Tableau7[[#This Row],[Client]],) -> 0 | AL189: =IF(K189>0,Tableau7[[#This Row],[Parcelles]],) -> 0
AJ190: =IF(N190>0,Tableau7[[#This Row],[Campagne]],) -> 0 | AK190: =IF(J190>0,Tableau7[[#This Row],[Client]],) -> 0 | AL190: =IF(K190>0,Tableau7[[#This Row],[Parcelles]],) -> 0
AJ191: =IF(N191>0,Tableau7[[#This Row],[Campagne]],) -> 0 | AK191: =IF(J191>0,Tableau7[[#This Row],[Client]],) -> 0 | AL191: =IF(K191>0,Tableau7[[#This Row],[Parcelles]],) -> 0
AJ192: =IF(N192>0,Tableau7[[#This Row],[Campagne]],) -> 0 | AK192: =IF(J192>0,Tableau7[[#This Row],[Client]],) -> 0 | AL192: =IF(K192>0,Tableau7[[#This Row],[Parcelles]],) -> 0
AJ193: =IF(N193>0,Tableau7[[#This Row],[Campagne]],) -> 0 | AK193: =IF(J193>0,Tableau7[[#This Row],[Client]],) -> 0 | AL193: =IF(K193>0,Tableau7[[#This Row],[Parcelles]],) -> 0
AJ194: =IF(N194>0,Tableau7[[#This Row],[Campagne]],) -> 0 | AK194: =IF(J194>0,Tableau7[[#This Row],[Client]],) -> 0 | AL194: =IF(K194>0,Tableau7[[#This Row],[Parcelles]],) -> 0
AJ195: =IF(N195>0,Tableau7[[#This Row],[Campagne]],) -> 0 | AK195: =IF(J195>0,Tableau7[[#This Row],[Client]],) -> 0 | AL195: =IF(K195>0,Tableau7[[#This Row],[Parcelles]],) -> 0
AJ196: =IF(N196>0,Tableau7[[#This Row],[Campagne]],) -> 0 | AK196: =IF(J196>0,Tableau7[[#This Row],[Client]],) -> 0 | AL196: =IF(K196>0,Tableau7[[#This Row],[Parcelles]],) -> 0
AJ197: =IF(N197>0,Tableau7[[#This Row],[Campagne]],) -> 0 | AK197: =IF(J197>0,Tableau7[[#This Row],[Client]],) -> 0 | AL197: =IF(K197>0,Tableau7[[#This Row],[Parcelles]],) -> 0
AJ198: =IF(N198>0,Tableau7[[#This Row],[Campagne]],) -> 0 | AK198: =IF(J198>0,Tableau7[[#This Row],[Client]],) -> 0 | AL198: =IF(K198>0,Tableau7[[#This Row],[Parcelles]],) -> 0
AJ199: =IF(N199>0,Tableau7[[#This Row],[Campagne]],) -> 0 | AK199: =IF(J199>0,Tableau7[[#This Row],[Client]],) -> 0 | AL199: =IF(K199>0,Tableau7[[#This Row],[Parcelles]],) -> 0
AJ200: =IF(N200>0,Tableau7[[#This Row],[Campagne]],) -> 0 | AK200: =IF(J200>0,Tableau7[[#This Row],[Client]],) -> 0 | AL200: =IF(K200>0,Tableau7[[#This Row],[Parcelles]],) -> 0
... 300 more rows

Sheet Résultat
B2: =Base!A2 -> Labour | C2: =Base!A2 -> Labour | D2: =Base!A3 -> Pulvérisation | E2: =Base!A3 -> Pulvérisation | F2: =Base!A4 -> Moisson | G2: =Base!A4 -> Moisson | H2: =Base!A5 -> Engrais | I2: =Base!A5 -> Engrais | J2: =Base!A6 -> Déchaumage | K2: =Base!A6 -> Déchaumage | L2: 000.00 | M2: =Base!A7 -> 0 | N2: =Base!A8 -> 0 | O2: =Base!A8 -> 0
A3: =Base!AD2 -> Durand | B3: =SUMPRODUCT((Tableau1[Client]=Tableau2[[#This Row],[Clients]])*(Tableau1[Oppération]=Résultat!$B$2)*(Tableau1[Surface])) -> 0.00 ha | C3: =IF(C$2>0,((SUMPRODUCT((Tableau1[Client]=$A3)*(Tableau1[Oppération]=Résultat!C$2)*(Tableau1[Surface])))*VLOOKUP(C$2,Tableau6[],2,0))," ") -> 0 | D3: =SUMPRODUCT((Tableau1[Client]=Tableau2[[#This Row],[Clients]])*(Tableau1[Oppération]=Résultat!$D$2)*(Tableau1[Surface])) -> 20.00 ha | E3: =IF(E$2>0,((SUMPRODUCT((Tableau1[Client]=$A3)*(Tableau1[Oppération]=Résultat!E$2)*(Tableau1[Surface])))*VLOOKUP(E$2,Tableau6[],2,0))," ") -> 300.00 € | F3: =SUMPRODUCT((Tableau1[Client]=Tableau2[[#This Row],[Clients]])*(Tableau1[Oppération]=Résultat!$F$2)*(Tableau1[Surface])) -> 10.00 ha | G3: =IF(G$2>0,((SUMPRODUCT((Tableau1[Client]=$A3)*(Tableau1[Oppération]=Résultat!G$2)*(Tableau1[Surface])))*VLOOKUP(G$2,Tableau6[],2,0))," ") -> 900.00 € | H3: =SUMPRODUCT((Tableau1[Client]=Tableau2[[#This Row],[Clients]])*(Tableau1[Oppération]=Résultat!$H$2)*(Tableau1[Surface])) -> 55.00 ha | I3: =IF(I$2>0,((SUMPRODUCT((Tableau1[Client]=$A3)*(Tableau1[Oppération]=Résultat!I$2)*(Tableau1[Surface])))*VLOOKUP(I$2,Tableau6[],2,0))," ") -> 825.00 € | J3: =SUMPRODUCT((Tableau1[Client]=Tableau2[[#This Row],[Clients]])*(Tableau1[Oppération]=Résultat!J2)*(Tableau1[Surface])) -> 0.00 ha | K3: =IF(K$2>0,((SUMPRODUCT((Tableau1[Client]=$A3)*(Tableau1[Oppération]=Résultat!K$2)*(Tableau1[Surface])))*VLOOKUP(K$2,Tableau6[],2,0))," ") -> 0 | L3: 000.00 | M3: =IF(M$2>0,((SUMPRODUCT((Tableau1[Client]=$A3)*(Tableau1[Oppération]=Résultat!M$2)*(Tableau1[Surface])))*VLOOKUP(M$2,Tableau6[],2,0))," ") ->  | N3: =SUMPRODUCT((Tableau1[Client]=Tableau2[[#This Row],[Clients]])*(Tableau1[Oppération]=Résultat!N2)*(Tableau1[Surface])) -> 0.00 ha | O3: =IF(O$2>0,((SUMPRODUCT((Tableau1[Client]=$A3)*(Tableau1[Oppération]=Résultat!O$2)*(Tableau1[Surface])))*VLOOKUP(O$2,Tableau6[],2,0))," ") -> 
A4: =Base!AD3 -> Florian | B4: =SUMPRODUCT((Tableau1[Client]=Tableau2[[#This Row],[Clients]])*(Tableau1[Oppération]=Résultat!$B$2)*(Tableau1[Surface])) -> 16.70 ha | C4: =IF(C$2>0,((SUMPRODUCT((Tableau1[Client]=$A4)*(Tableau1[Oppération]=Résultat!C$2)*(Tableau1[Surface])))*VLOOKUP(C$2,Tableau6[],2,0))," ") -> 1,503.00 € | D4: =SUMPRODUCT((Tableau1[Client]=Tableau2[[#This Row],[Clients]])*(Tableau1[Oppération]=Résultat!$D$2)*(Tableau1[Surface])) -> 20.00 ha | E4: =IF(E$2>0,((SUMPRODUCT((Tableau1[Client]=$A4)*(Tableau1[Oppération]=Résultat!E$2)*(Tableau1[Surface])))*VLOOKUP(E$2,Tableau6[],2,0))," ") -> 300.00 € | F4: =SUMPRODUCT((Tableau1[Client]=Tableau2[[#This Row],[Clients]])*(Tableau1[Oppération]=Résultat!$F$2)*(Tableau1[Surface])) -> 67.35 ha | G4: =IF(G$2>0,((SUMPRODUCT((Tableau1[Client]=$A4)*(Tableau1[Oppération]=Résultat!G$2)*(Tableau1[Surface])))*VLOOKUP(G$2,Tableau6[],2,0))," ") -> 6,061.50 € | H4: =SUMPRODUCT((Tableau1[Client]=Tableau2[[#This Row],[Clients]])*(Tableau1[Oppération]=Résultat!$H$2)*(Tableau1[Surface])) -> 0.00 ha | I4: =IF(I$2>0,((SUMPRODUCT((Tableau1[Client]=$A4)*(Tableau1[Oppération]=Résultat!I$2)*(Tableau1[Surface])))*VLOOKUP(I$2,Tableau6[],2,0))," ") -> 0 | J4: =SUMPRODUCT((Tableau1[Client]=Tableau2[[#This Row],[Clients]])*(Tableau1[Oppération]=Résultat!J3)*(Tableau1[Surface])) -> 0.00 ha | K4: =IF(K$2>0,((SUMPRODUCT((Tableau1[Client]=$A4)*(Tableau1[Oppération]=Résultat!K$2)*(Tableau1[Surface])))*VLOOKUP(K$2,Tableau6[],2,0))," ") -> 0 | L4: 000.00 | M4: =IF(M$2>0,((SUMPRODUCT((Tableau1[Client]=$A4)*(Tableau1[Oppération]=Résultat!M$2)*(Tableau1[Surface])))*VLOOKUP(M$2,Tableau6[],2,0))," ") ->  | N4: =SUMPRODUCT((Tableau1[Client]=Tableau2[[#This Row],[Clients]])*(Tableau1[Oppération]=Résultat!N3)*(Tableau1[Surface])) -> 0.00 ha | O4: =IF(O$2>0,((SUMPRODUCT((Tableau1[Client]=$A4)*(Tableau1[Oppération]=Résultat!O$2)*(Tableau1[Surface])))*VLOOKUP(O$2,Tableau6[],2,0))," ") -> 
A5: =Base!AD4 -> Moi | B5: =SUMPRODUCT((Tableau1[Client]=Tableau2[[#This Row],[Clients]])*(Tableau1[Oppération]=Résultat!$B$2)*(Tableau1[Surface])) -> 0.00 ha | C5: =IF(C$2>0,((SUMPRODUCT((Tableau1[Client]=$A5)*(Tableau1[Oppération]=Résultat!C$2)*(Tableau1[Surface])))*VLOOKUP(C$2,Tableau6[],2,0))," ") -> 0 | D5: =SUMPRODUCT((Tableau1[Client]=Tableau2[[#This Row],[Clients]])*(Tableau1[Oppération]=Résultat!$D$2)*(Tableau1[Surface])) -> 0.00 ha | E5: =IF(E$2>0,((SUMPRODUCT((Tableau1[Client]=$A5)*(Tableau1[Oppération]=Résultat!E$2)*(Tableau1[Surface])))*VLOOKUP(E$2,Tableau6[],2,0))," ") -> 0 | F5: =SUMPRODUCT((Tableau1[Client]=Tableau2[[#This Row],[Clients]])*(Tableau1[Oppération]=Résultat!$F$2)*(Tableau1[Surface])) -> 0.00 ha | G5: =IF(G$2>0,((SUMPRODUCT((Tableau1[Client]=$A5)*(Tableau1[Oppération]=Résultat!G$2)*(Tableau1[Surface])))*VLOOKUP(G$2,Tableau6[],2,0))," ") -> 0 | H5: =SUMPRODUCT((Tableau1[Client]=Tableau2[[#This Row],[Clients]])*(Tableau1[Oppération]=Résultat!$H$2)*(Tableau1[Surface])) -> 0.00 ha | I5: =IF(I$2>0,((SUMPRODUCT((Tableau1[Client]=$A5)*(Tableau1[Oppération]=Résultat!I$2)*(Tableau1[Surface])))*VLOOKUP(I$2,Tableau6[],2,0))," ") -> 0 | J5: =SUMPRODUCT((Tableau1[Client]=Tableau2[[#This Row],[Clients]])*(Tableau1[Oppération]=Résultat!J4)*(Tableau1[Surface])) -> 0.00 ha | K5: =IF(K$2>0,((SUMPRODUCT((Tableau1[Client]=$A5)*(Tableau1[Oppération]=Résultat!K$2)*(Tableau1[Surface])))*VLOOKUP(K$2,Tableau6[],2,0))," ") -> 0 | L5: 000.00 | M5: =IF(M$2>0,((SUMPRODUCT((Tableau1[Client]=$A5)*(Tableau1[Oppération]=Résultat!M$2)*(Tableau1[Surface])))*VLOOKUP(M$2,Tableau6[],2,0))," ") ->  | N5: =SUMPRODUCT((Tableau1[Client]=Tableau2[[#This Row],[Clients]])*(Tableau1[Oppération]=Résultat!N4)*(Tableau1[Surface])) -> 0.00 ha | O5: =IF(O$2>0,((SUMPRODUCT((Tableau1[Client]=$A5)*(Tableau1[Oppération]=Résultat!O$2)*(Tableau1[Surface])))*VLOOKUP(O$2,Tableau6[],2,0))," ") -> 
A6: =Base!AD5 -> Tisse | B6: =SUMPRODUCT((Tableau1[Client]=Tableau2[[#This Row],[Clients]])*(Tableau1[Oppération]=Résultat!$B$2)*(Tableau1[Surface])) -> 0.00 ha | C6: =IF(C$2>0,((SUMPRODUCT((Tableau1[Client]=$A6)*(Tableau1[Oppération]=Résultat!C$2)*(Tableau1[Surface])))*VLOOKUP(C$2,Tableau6[],2,0))," ") -> 0 | D6: =SUMPRODUCT((Tableau1[Client]=Tableau2[[#This Row],[Clients]])*(Tableau1[Oppération]=Résultat!$D$2)*(Tableau1[Surface])) -> 0.00 ha | E6: =IF(E$2>0,((SUMPRODUCT((Tableau1[Client]=$A6)*(Tableau1[Oppération]=Résultat!E$2)*(Tableau1[Surface])))*VLOOKUP(E$2,Tableau6[],2,0))," ") -> 0 | F6: =SUMPRODUCT((Tableau1[Client]=Tableau2[[#This Row],[Clients]])*(Tableau1[Oppération]=Résultat!$F$2)*(Tableau1[Surface])) -> 0.00 ha | G6: =IF(G$2>0,((SUMPRODUCT((Tableau1[Client]=$A6)*(Tableau1[Oppération]=Résultat!G$2)*(Tableau1[Surface])))*VLOOKUP(G$2,Tableau6[],2,0))," ") -> 0 | H6: =SUMPRODUCT((Tableau1[Client]=Tableau2[[#This Row],[Clients]])*(Tableau1[Oppération]=Résultat!$H$2)*(Tableau1[Surface])) -> 0.00 ha | I6: =IF(I$2>0,((SUMPRODUCT((Tableau1[Client]=$A6)*(Tableau1[Oppération]=Résultat!I$2)*(Tableau1[Surface])))*VLOOKUP(I$2,Tableau6[],2,0))," ") -> 0 | J6: =SUMPRODUCT((Tableau1[Client]=Tableau2[[#This Row],[Clients]])*(Tableau1[Oppération]=Résultat!J5)*(Tableau1[Surface])) -> 0.00 ha | K6: =IF(K$2>0,((SUMPRODUCT((Tableau1[Client]=$A6)*(Tableau1[Oppération]=Résultat!K$2)*(Tableau1[Surface])))*VLOOKUP(K$2,Tableau6[],2,0))," ") -> 0 | L6: 000.00 | M6: =IF(M$2>0,((SUMPRODUCT((Tableau1[Client]=$A6)*(Tableau1[Oppération]=Résultat!M$2)*(Tableau1[Surface])))*VLOOKUP(M$2,Tableau6[],2,0))," ") ->  | N6: =SUMPRODUCT((Tableau1[Client]=Tableau2[[#This Row],[Clients]])*(Tableau1[Oppération]=Résultat!N5)*(Tableau1[Surface])) -> 0.00 ha | O6: =IF(O$2>0,((SUMPRODUCT((Tableau1[Client]=$A6)*(Tableau1[Oppération]=Résultat!O$2)*(Tableau1[Surface])))*VLOOKUP(O$2,Tableau6[],2,0))," ") -> 
A7: =Base!AD6 ->  | B7: =SUMPRODUCT((Tableau1[Client]=Tableau2[[#This Row],[Clients]])*(Tableau1[Oppération]=Résultat!$B$2)*(Tableau1[Surface])) -> 0.00 ha | C7: =IF(C$2>0,((SUMPRODUCT((Tableau1[Client]=$A7)*(Tableau1[Oppération]=Résultat!C$2)*(Tableau1[Surface])))*VLOOKUP(C$2,Tableau6[],2,0))," ") -> 0 | D7: =SUMPRODUCT((Tableau1[Client]=Tableau2[[#This Row],[Clients]])*(Tableau1[Oppération]=Résultat!$D$2)*(Tableau1[Surface])) -> 0.00 ha | E7: =IF(E$2>0,((SUMPRODUCT((Tableau1[Client]=$A7)*(Tableau1[Oppération]=Résultat!E$2)*(Tableau1[Surface])))*VLOOKUP(E$2,Tableau6[],2,0))," ") -> 0 | F7: =SUMPRODUCT((Tableau1[Client]=Tableau2[[#This Row],[Clients]])*(Tableau1[Oppération]=Résultat!$F$2)*(Tableau1[Surface])) -> 0.00 ha | G7: =IF(G$2>0,((SUMPRODUCT((Tableau1[Client]=$A7)*(Tableau1[Oppération]=Résultat!G$2)*(Tableau1[Surface])))*VLOOKUP(G$2,Tableau6[],2,0))," ") -> 0 | H7: =SUMPRODUCT((Tableau1[Client]=Tableau2[[#This Row],[Clients]])*(Tableau1[Oppération]=Résultat!$H$2)*(Tableau1[Surface])) -> 0.00 ha | I7: =IF(I$2>0,((SUMPRODUCT((Tableau1[Client]=$A7)*(Tableau1[Oppération]=Résultat!I$2)*(Tableau1[Surface])))*VLOOKUP(I$2,Tableau6[],2,0))," ") -> 0 | J7: =SUMPRODUCT((Tableau1[Client]=Tableau2[[#This Row],[Clients]])*(Tableau1[Oppération]=Résultat!J6)*(Tableau1[Surface])) -> 0.00 ha | K7: =IF(K$2>0,((SUMPRODUCT((Tableau1[Client]=$A7)*(Tableau1[Oppération]=Résultat!K$2)*(Tableau1[Surface])))*VLOOKUP(K$2,Tableau6[],2,0))," ") -> 0 | L7: 000.00 | M7: =IF(M$2>0,((SUMPRODUCT((Tableau1[Client]=$A7)*(Tableau1[Oppération]=Résultat!M$2)*(Tableau1[Surface])))*VLOOKUP(M$2,Tableau6[],2,0))," ") ->  | N7: =SUMPRODUCT((Tableau1[Client]=Tableau2[[#This Row],[Clients]])*(Tableau1[Oppération]=Résultat!N6)*(Tableau1[Surface])) -> 0.00 ha | O7: =IF(O$2>0,((SUMPRODUCT((Tableau1[Client]=$A7)*(Tableau1[Oppération]=Résultat!O$2)*(Tableau1[Surface])))*VLOOKUP(O$2,Tableau6[],2,0))," ") -> 
A8: =Base!AD7 -> 0 | B8: =SUMPRODUCT((Tableau1[Client]=Tableau2[[#This Row],[Clients]])*(Tableau1[Oppération]=Résultat!$B$2)*(Tableau1[Surface])) -> 0.00 ha | C8: =IF(C$2>0,((SUMPRODUCT((Tableau1[Client]=$A8)*(Tableau1[Oppération]=Résultat!C$2)*(Tableau1[Surface])))*VLOOKUP(C$2,Tableau6[],2,0))," ") -> 0 | D8: =SUMPRODUCT((Tableau1[Client]=Tableau2[[#This Row],[Clients]])*(Tableau1[Oppération]=Résultat!$D$2)*(Tableau1[Surface])) -> 0.00 ha | E8: =IF(E$2>0,((SUMPRODUCT((Tableau1[Client]=$A8)*(Tableau1[Oppération]=Résultat!E$2)*(Tableau1[Surface])))*VLOOKUP(E$2,Tableau6[],2,0))," ") -> 0 | F8: =SUMPRODUCT((Tableau1[Client]=Tableau2[[#This Row],[Clients]])*(Tableau1[Oppération]=Résultat!$F$2)*(Tableau1[Surface])) -> 0.00 ha | G8: =IF(G$2>0,((SUMPRODUCT((Tableau1[Client]=$A8)*(Tableau1[Oppération]=Résultat!G$2)*(Tableau1[Surface])))*VLOOKUP(G$2,Tableau6[],2,0))," ") -> 0 | H8: =SUMPRODUCT((Tableau1[Client]=Tableau2[[#This Row],[Clients]])*(Tableau1[Oppération]=Résultat!$H$2)*(Tableau1[Surface])) -> 0.00 ha | I8: =IF(I$2>0,((SUMPRODUCT((Tableau1[Client]=$A8)*(Tableau1[Oppération]=Résultat!I$2)*(Tableau1[Surface])))*VLOOKUP(I$2,Tableau6[],2,0))," ") -> 0 | J8: =SUMPRODUCT((Tableau1[Client]=Tableau2[[#This Row],[Clients]])*(Tableau1[Oppération]=Résultat!J7)*(Tableau1[Surface])) -> 0.00 ha | K8: =IF(K$2>0,((SUMPRODUCT((Tableau1[Client]=$A8)*(Tableau1[Oppération]=Résultat!K$2)*(Tableau1[Surface])))*VLOOKUP(K$2,Tableau6[],2,0))," ") -> 0 | L8: 000.00 | M8: =IF(M$2>0,((SUMPRODUCT((Tableau1[Client]=$A8)*(Tableau1[Oppération]=Résultat!M$2)*(Tableau1[Surface])))*VLOOKUP(M$2,Tableau6[],2,0))," ") ->  | N8: =SUMPRODUCT((Tableau1[Client]=Tableau2[[#This Row],[Clients]])*(Tableau1[Oppération]=Résultat!N7)*(Tableau1[Surface])) -> 0.00 ha | O8: =IF(O$2>0,((SUMPRODUCT((Tableau1[Client]=$A8)*(Tableau1[Oppération]=Résultat!O$2)*(Tableau1[Surface])))*VLOOKUP(O$2,Tableau6[],2,0))," ") -> 
A9: =Base!AD8 -> 0 | B9: =SUMPRODUCT((Tableau1[Client]=Tableau2[[#This Row],[Clients]])*(Tableau1[Oppération]=Résultat!$B$2)*(Tableau1[Surface])) -> 0.00 ha | C9: =IF(C$2>0,((SUMPRODUCT((Tableau1[Client]=$A9)*(Tableau1[Oppération]=Résultat!C$2)*(Tableau1[Surface])))*VLOOKUP(C$2,Tableau6[],2,0))," ") -> 0 | D9: =SUMPRODUCT((Tableau1[Client]=Tableau2[[#This Row],[Clients]])*(Tableau1[Oppération]=Résultat!$D$2)*(Tableau1[Surface])) -> 0.00 ha | E9: =IF(E$2>0,((SUMPRODUCT((Tableau1[Client]=$A9)*(Tableau1[Oppération]=Résultat!E$2)*(Tableau1[Surface])))*VLOOKUP(E$2,Tableau6[],2,0))," ") -> 0 | F9: =SUMPRODUCT((Tableau1[Client]=Tableau2[[#This Row],[Clients]])*(Tableau1[Oppération]=Résultat!$F$2)*(Tableau1[Surface])) -> 0.00 ha | G9: =IF(G$2>0,((SUMPRODUCT((Tableau1[Client]=$A9)*(Tableau1[Oppération]=Résultat!G$2)*(Tableau1[Surface])))*VLOOKUP(G$2,Tableau6[],2,0))," ") -> 0 | H9: =SUMPRODUCT((Tableau1[Client]=Tableau2[[#This Row],[Clients]])*(Tableau1[Oppération]=Résultat!$H$2)*(Tableau1[Surface])) -> 0.00 ha | I9: =IF(I$2>0,((SUMPRODUCT((Tableau1[Client]=$A9)*(Tableau1[Oppération]=Résultat!I$2)*(Tableau1[Surface])))*VLOOKUP(I$2,Tableau6[],2,0))," ") -> 0 | J9: =SUMPRODUCT((Tableau1[Client]=Tableau2[[#This Row],[Clients]])*(Tableau1[Oppération]=Résultat!J8)*(Tableau1[Surface])) -> 0.00 ha | K9: =IF(K$2>0,((SUMPRODUCT((Tableau1[Client]=$A9)*(Tableau1[Oppération]=Résultat!K$2)*(Tableau1[Surface])))*VLOOKUP(K$2,Tableau6[],2,0))," ") -> 0 | L9: 000.00 | M9: =IF(M$2>0,((SUMPRODUCT((Tableau1[Client]=$A9)*(Tableau1[Oppération]=Résultat!M$2)*(Tableau1[Surface])))*VLOOKUP(M$2,Tableau6[],2,0))," ") ->  | N9: =SUMPRODUCT((Tableau1[Client]=Tableau2[[#This Row],[Clients]])*(Tableau1[Oppération]=Résultat!N8)*(Tableau1[Surface])) -> 0.00 ha | O9: =IF(O$2>0,((SUMPRODUCT((Tableau1[Client]=$A9)*(Tableau1[Oppération]=Résultat!O$2)*(Tableau1[Surface])))*VLOOKUP(O$2,Tableau6[],2,0))," ") -> 
A10: =Base!AD9 -> 0 | B10: =SUMPRODUCT((Tableau1[Client]=Tableau2[[#This Row],[Clients]])*(Tableau1[Oppération]=Résultat!$B$2)*(Tableau1[Surface])) -> 0.00 ha | C10: =IF(C$2>0,((SUMPRODUCT((Tableau1[Client]=$A10)*(Tableau1[Oppération]=Résultat!C$2)*(Tableau1[Surface])))*VLOOKUP(C$2,Tableau6[],2,0))," ") -> 0 | D10: =SUMPRODUCT((Tableau1[Client]=Tableau2[[#This Row],[Clients]])*(Tableau1[Oppération]=Résultat!$D$2)*(Tableau1[Surface])) -> 0.00 ha | E10: =IF(E$2>0,((SUMPRODUCT((Tableau1[Client]=$A10)*(Tableau1[Oppération]=Résultat!E$2)*(Tableau1[Surface])))*VLOOKUP(E$2,Tableau6[],2,0))," ") -> 0 | F10: =SUMPRODUCT((Tableau1[Client]=Tableau2[[#This Row],[Clients]])*(Tableau1[Oppération]=Résultat!$F$2)*(Tableau1[Surface])) -> 0.00 ha | G10: =IF(G$2>0,((SUMPRODUCT((Tableau1[Client]=$A10)*(Tableau1[Oppération]=Résultat!G$2)*(Tableau1[Surface])))*VLOOKUP(G$2,Tableau6[],2,0))," ") -> 0 | H10: =SUMPRODUCT((Tableau1[Client]=Tableau2[[#This Row],[Clients]])*(Tableau1[Oppération]=Résultat!$H$2)*(Tableau1[Surface])) -> 0.00 ha | I10: =IF(I$2>0,((SUMPRODUCT((Tableau1[Client]=$A10)*(Tableau1[Oppération]=Résultat!I$2)*(Tableau1[Surface])))*VLOOKUP(I$2,Tableau6[],2,0))," ") -> 0 | J10: =SUMPRODUCT((Tableau1[Client]=Tableau2[[#This Row],[Clients]])*(Tableau1[Oppération]=Résultat!J9)*(Tableau1[Surface])) -> 0.00 ha | K10: =IF(K$2>0,((SUMPRODUCT((Tableau1[Client]=$A10)*(Tableau1[Oppération]=Résultat!K$2)*(Tableau1[Surface])))*VLOOKUP(K$2,Tableau6[],2,0))," ") -> 0 | L10: 000.00 | M10: =IF(M$2>0,((SUMPRODUCT((Tableau1[Client]=$A10)*(Tableau1[Oppération]=Résultat!M$2)*(Tableau1[Surface])))*VLOOKUP(M$2,Tableau6[],2,0))," ") ->  | N10: =SUMPRODUCT((Tableau1[Client]=Tableau2[[#This Row],[Clients]])*(Tableau1[Oppération]=Résultat!N9)*(Tableau1[Surface])) -> 0.00 ha | O10: =IF(O$2>0,((SUMPRODUCT((Tableau1[Client]=$A10)*(Tableau1[Oppération]=Résultat!O$2)*(Tableau1[Surface])))*VLOOKUP(O$2,Tableau6[],2,0))," ") -> 
A11: =Base!AD10 -> 0 | B11: =SUMPRODUCT((Tableau1[Client]=Tableau2[[#This Row],[Clients]])*(Tableau1[Oppération]=Résultat!$B$2)*(Tableau1[Surface])) -> 0.00 ha | C11: =IF(C$2>0,((SUMPRODUCT((Tableau1[Client]=$A11)*(Tableau1[Oppération]=Résultat!C$2)*(Tableau1[Surface])))*VLOOKUP(C$2,Tableau6[],2,0))," ") -> 0 | D11: =SUMPRODUCT((Tableau1[Client]=Tableau2[[#This Row],[Clients]])*(Tableau1[Oppération]=Résultat!$D$2)*(Tableau1[Surface])) -> 0.00 ha | E11: =IF(E$2>0,((SUMPRODUCT((Tableau1[Client]=$A11)*(Tableau1[Oppération]=Résultat!E$2)*(Tableau1[Surface])))*VLOOKUP(E$2,Tableau6[],2,0))," ") -> 0 | F11: =SUMPRODUCT((Tableau1[Client]=Tableau2[[#This Row],[Clients]])*(Tableau1[Oppération]=Résultat!$F$2)*(Tableau1[Surface])) -> 0.00 ha | G11: =IF(G$2>0,((SUMPRODUCT((Tableau1[Client]=$A11)*(Tableau1[Oppération]=Résultat!G$2)*(Tableau1[Surface])))*VLOOKUP(G$2,Tableau6[],2,0))," ") -> 0 | H11: =SUMPRODUCT((Tableau1[Client]=Tableau2[[#This Row],[Clients]])*(Tableau1[Oppération]=Résultat!$H$2)*(Tableau1[Surface])) -> 0.00 ha | I11: =IF(I$2>0,((SUMPRODUCT((Tableau1[Client]=$A11)*(Tableau1[Oppération]=Résultat!I$2)*(Tableau1[Surface])))*VLOOKUP(I$2,Tableau6[],2,0))," ") -> 0 | J11: =SUMPRODUCT((Tableau1[Client]=Tableau2[[#This Row],[Clients]])*(Tableau1[Oppération]=Résultat!J10)*(Tableau1[Surface])) -> 0.00 ha | K11: =IF(K$2>0,((SUMPRODUCT((Tableau1[Client]=$A11)*(Tableau1[Oppération]=Résultat!K$2)*(Tableau1[Surface])))*VLOOKUP(K$2,Tableau6[],2,0))," ") -> 0 | L11: 001.00 | M11: =IF(M$2>0,((SUMPRODUCT((Tableau1[Client]=$A11)*(Tableau1[Oppération]=Résultat!M$2)*(Tableau1[Surface])))*VLOOKUP(M$2,Tableau6[],2,0))," ") ->  | N11: =SUMPRODUCT((Tableau1[Client]=Tableau2[[#This Row],[Clients]])*(Tableau1[Oppération]=Résultat!N10)*(Tableau1[Surface])) -> 0.00 ha
A12: =Base!AD11 -> 0 | B12: =SUMPRODUCT((Tableau1[Client]=Tableau2[[#This Row],[Clients]])*(Tableau1[Oppération]=Résultat!$B$2)*(Tableau1[Surface])) -> 0.00 ha | C12: =IF(C$2>0,((SUMPRODUCT((Tableau1[Client]=$A12)*(Tableau1[Oppération]=Résultat!C$2)*(Tableau1[Surface])))*VLOOKUP(C$2,Tableau6[],2,0))," ") -> 0 | D12: =SUMPRODUCT((Tableau1[Client]=Tableau2[[#This Row],[Clients]])*(Tableau1[Oppération]=Résultat!$D$2)*(Tableau1[Surface])) -> 0.00 ha | E12: =IF(E$2>0,((SUMPRODUCT((Tableau1[Client]=$A12)*(Tableau1[Oppération]=Résultat!E$2)*(Tableau1[Surface])))*VLOOKUP(E$2,Tableau6[],2,0))," ") -> 0 | F12: =SUMPRODUCT((Tableau1[Client]=Tableau2[[#This Row],[Clients]])*(Tableau1[Oppération]=Résultat!$F$2)*(Tableau1[Surface])) -> 0.00 ha | G12: =IF(G$2>0,((SUMPRODUCT((Tableau1[Client]=$A12)*(Tableau1[Oppération]=Résultat!G$2)*(Tableau1[Surface])))*VLOOKUP(G$2,Tableau6[],2,0))," ") -> 0 | H12: =SUMPRODUCT((Tableau1[Client]=Tableau2[[#This Row],[Clients]])*(Tableau1[Oppération]=Résultat!$H$2)*(Tableau1[Surface])) -> 0.00 ha | I12: =IF(I$2>0,((SUMPRODUCT((Tableau1[Client]=$A12)*(Tableau1[Oppération]=Résultat!I$2)*(Tableau1[Surface])))*VLOOKUP(I$2,Tableau6[],2,0))," ") -> 0 | J12: =SUMPRODUCT((Tableau1[Client]=Tableau2[[#This Row],[Clients]])*(Tableau1[Oppération]=Résultat!J11)*(Tableau1[Surface])) -> 0.00 ha | K12: =IF(K$2>0,((SUMPRODUCT((Tableau1[Client]=$A12)*(Tableau1[Oppération]=Résultat!K$2)*(Tableau1[Surface])))*VLOOKUP(K$2,Tableau6[],2,0))," ") -> 0 | L12: 002.00 | M12: =IF(M$2>0,((SUMPRODUCT((Tableau1[Client]=$A12)*(Tableau1[Oppération]=Résultat!M$2)*(Tableau1[Surface])))*VLOOKUP(M$2,Tableau6[],2,0))," ") ->  | N12: =SUMPRODUCT((Tableau1[Client]=Tableau2[[#This Row],[Clients]])*(Tableau1[Oppération]=Résultat!N11)*(Tableau1[Surface])) -> 0.00 ha
A13: =Base!AD12 -> 0 | B13: =SUMPRODUCT((Tableau1[Client]=Tableau2[[#This Row],[Clients]])*(Tableau1[Oppération]=Résultat!$B$2)*(Tableau1[Surface])) -> 0.00 ha | C13: =IF(C$2>0,((SUMPRODUCT((Tableau1[Client]=$A13)*(Tableau1[Oppération]=Résultat!C$2)*(Tableau1[Surface])))*VLOOKUP(C$2,Tableau6[],2,0))," ") -> 0 | D13: =SUMPRODUCT((Tableau1[Client]=Tableau2[[#This Row],[Clients]])*(Tableau1[Oppération]=Résultat!$D$2)*(Tableau1[Surface])) -> 0.00 ha | E13: =IF(E$2>0,((SUMPRODUCT((Tableau1[Client]=$A13)*(Tableau1[Oppération]=Résultat!E$2)*(Tableau1[Surface])))*VLOOKUP(E$2,Tableau6[],2,0))," ") -> 0 | F13: =SUMPRODUCT((Tableau1[Client]=Tableau2[[#This Row],[Clients]])*(Tableau1[Oppération]=Résultat!$F$2)*(Tableau1[Surface])) -> 0.00 ha | G13: =IF(G$2>0,((SUMPRODUCT((Tableau1[Client]=$A13)*(Tableau1[Oppération]=Résultat!G$2)*(Tableau1[Surface])))*VLOOKUP(G$2,Tableau6[],2,0))," ") -> 0 | H13: =SUMPRODUCT((Tableau1[Client]=Tableau2[[#This Row],[Clients]])*(Tableau1[Oppération]=Résultat!$H$2)*(Tableau1[Surface])) -> 0.00 ha | I13: =IF(I$2>0,((SUMPRODUCT((Tableau1[Client]=$A13)*(Tableau1[Oppération]=Résultat!I$2)*(Tableau1[Surface])))*VLOOKUP(I$2,Tableau6[],2,0))," ") -> 0 | J13: =SUMPRODUCT((Tableau1[Client]=Tableau2[[#This Row],[Clients]])*(Tableau1[Oppération]=Résultat!J12)*(Tableau1[Surface])) -> 0.00 ha | K13: =IF(K$2>0,((SUMPRODUCT((Tableau1[Client]=$A13)*(Tableau1[Oppération]=Résultat!K$2)*(Tableau1[Surface])))*VLOOKUP(K$2,Tableau6[],2,0))," ") -> 0 | L13: 003.00 | M13: =IF(M$2>0,((SUMPRODUCT((Tableau1[Client]=$A13)*(Tableau1[Oppération]=Résultat!M$2)*(Tableau1[Surface])))*VLOOKUP(M$2,Tableau6[],2,0))," ") ->  | N13: =SUMPRODUCT((Tableau1[Client]=Tableau2[[#This Row],[Clients]])*(Tableau1[Oppération]=Résultat!N12)*(Tableau1[Surface])) -> 0.00 ha
A14: =Base!AD13 -> 0 | B14: =SUMPRODUCT((Tableau1[Client]=Tableau2[[#This Row],[Clients]])*(Tableau1[Oppération]=Résultat!$B$2)*(Tableau1[Surface])) -> 0.00 ha | C14: =IF(C$2>0,((SUMPRODUCT((Tableau1[Client]=$A14)*(Tableau1[Oppération]=Résultat!C$2)*(Tableau1[Surface])))*VLOOKUP(C$2,Tableau6[],2,0))," ") -> 0 | D14: =SUMPRODUCT((Tableau1[Client]=Tableau2[[#This Row],[Clients]])*(Tableau1[Oppération]=Résultat!$D$2)*(Tableau1[Surface])) -> 0.00 ha | E14: =IF(E$2>0,((SUMPRODUCT((Tableau1[Client]=$A14)*(Tableau1[Oppération]=Résultat!E$2)*(Tableau1[Surface])))*VLOOKUP(E$2,Tableau6[],2,0))," ") -> 0 | F14: =SUMPRODUCT((Tableau1[Client]=Tableau2[[#This Row],[Clients]])*(Tableau1[Oppération]=Résultat!$F$2)*(Tableau1[Surface])) -> 0.00 ha | G14: =IF(G$2>0,((SUMPRODUCT((Tableau1[Client]=$A14)*(Tableau1[Oppération]=Résultat!G$2)*(Tableau1[Surface])))*VLOOKUP(G$2,Tableau6[],2,0))," ") -> 0 | H14: =SUMPRODUCT((Tableau1[Client]=Tableau2[[#This Row],[Clients]])*(Tableau1[Oppération]=Résultat!$H$2)*(Tableau1[Surface])) -> 0.00 ha | I14: =IF(I$2>0,((SUMPRODUCT((Tableau1[Client]=$A14)*(Tableau1[Oppération]=Résultat!I$2)*(Tableau1[Surface])))*VLOOKUP(I$2,Tableau6[],2,0))," ") -> 0 | J14: =SUMPRODUCT((Tableau1[Client]=Tableau2[[#This Row],[Clients]])*(Tableau1[Oppération]=Résultat!J13)*(Tableau1[Surface])) -> 0.00 ha | K14: =IF(K$2>0,((SUMPRODUCT((Tableau1[Client]=$A14)*(Tableau1[Oppération]=Résultat!K$2)*(Tableau1[Surface])))*VLOOKUP(K$2,Tableau6[],2,0))," ") -> 0 | L14: 004.00 | M14: =IF(M$2>0,((SUMPRODUCT((Tableau1[Client]=$A14)*(Tableau1[Oppération]=Résultat!M$2)*(Tableau1[Surface])))*VLOOKUP(M$2,Tableau6[],2,0))," ") ->  | N14: =SUMPRODUCT((Tableau1[Client]=Tableau2[[#This Row],[Clients]])*(Tableau1[Oppération]=Résultat!N13)*(Tableau1[Surface])) -> 0.00 ha
A15: =Base!AD14 -> 0 | B15: =SUMPRODUCT((Tableau1[Client]=Tableau2[[#This Row],[Clients]])*(Tableau1[Oppération]=Résultat!$B$2)*(Tableau1[Surface])) -> 0.00 ha | C15: =IF(C$2>0,((SUMPRODUCT((Tableau1[Client]=$A15)*(Tableau1[Oppération]=Résultat!C$2)*(Tableau1[Surface])))*VLOOKUP(C$2,Tableau6[],2,0))," ") -> 0 | D15: =SUMPRODUCT((Tableau1[Client]=Tableau2[[#This Row],[Clients]])*(Tableau1[Oppération]=Résultat!$D$2)*(Tableau1[Surface])) -> 0.00 ha | E15: =IF(E$2>0,((SUMPRODUCT((Tableau1[Client]=$A15)*(Tableau1[Oppération]=Résultat!E$2)*(Tableau1[Surface])))*VLOOKUP(E$2,Tableau6[],2,0))," ") -> 0 | F15: =SUMPRODUCT((Tableau1[Client]=Tableau2[[#This Row],[Clients]])*(Tableau1[Oppération]=Résultat!$F$2)*(Tableau1[Surface])) -> 0.00 ha | G15: =IF(G$2>0,((SUMPRODUCT((Tableau1[Client]=$A15)*(Tableau1[Oppération]=Résultat!G$2)*(Tableau1[Surface])))*VLOOKUP(G$2,Tableau6[],2,0))," ") -> 0 | H15: =SUMPRODUCT((Tableau1[Client]=Tableau2[[#This Row],[Clients]])*(Tableau1[Oppération]=Résultat!$H$2)*(Tableau1[Surface])) -> 0.00 ha | I15: =IF(I$2>0,((SUMPRODUCT((Tableau1[Client]=$A15)*(Tableau1[Oppération]=Résultat!I$2)*(Tableau1[Surface])))*VLOOKUP(I$2,Tableau6[],2,0))," ") -> 0 | J15: =SUMPRODUCT((Tableau1[Client]=Tableau2[[#This Row],[Clients]])*(Tableau1[Oppération]=Résultat!J14)*(Tableau1[Surface])) -> 0.00 ha | K15: =IF(K$2>0,((SUMPRODUCT((Tableau1[Client]=$A15)*(Tableau1[Oppération]=Résultat!K$2)*(Tableau1[Surface])))*VLOOKUP(K$2,Tableau6[],2,0))," ") -> 0 | L15: 005.00 | M15: =IF(M$2>0,((SUMPRODUCT((Tableau1[Client]=$A15)*(Tableau1[Oppération]=Résultat!M$2)*(Tableau1[Surface])))*VLOOKUP(M$2,Tableau6[],2,0))," ") ->  | N15: =SUMPRODUCT((Tableau1[Client]=Tableau2[[#This Row],[Clients]])*(Tableau1[Oppération]=Résultat!N14)*(Tableau1[Surface])) -> 0.00 ha
A16: =Base!AD15 -> 0 | B16: =SUMPRODUCT((Tableau1[Client]=Tableau2[[#This Row],[Clients]])*(Tableau1[Oppération]=Résultat!$B$2)*(Tableau1[Surface])) -> 0.00 ha | C16: =IF(C$2>0,((SUMPRODUCT((Tableau1[Client]=$A16)*(Tableau1[Oppération]=Résultat!C$2)*(Tableau1[Surface])))*VLOOKUP(C$2,Tableau6[],2,0))," ") -> 0 | D16: =SUMPRODUCT((Tableau1[Client]=Tableau2[[#This Row],[Clients]])*(Tableau1[Oppération]=Résultat!$D$2)*(Tableau1[Surface])) -> 0.00 ha | E16: =IF(E$2>0,((SUMPRODUCT((Tableau1[Client]=$A16)*(Tableau1[Oppération]=Résultat!E$2)*(Tableau1[Surface])))*VLOOKUP(E$2,Tableau6[],2,0))," ") -> 0 | F16: =SUMPRODUCT((Tableau1[Client]=Tableau2[[#This Row],[Clients]])*(Tableau1[Oppération]=Résultat!$F$2)*(Tableau1[Surface])) -> 0.00 ha | G16: =IF(G$2>0,((SUMPRODUCT((Tableau1[Client]=$A16)*(Tableau1[Oppération]=Résultat!G$2)*(Tableau1[Surface])))*VLOOKUP(G$2,Tableau6[],2,0))," ") -> 0 | H16: =SUMPRODUCT((Tableau1[Client]=Tableau2[[#This Row],[Clients]])*(Tableau1[Oppération]=Résultat!$H$2)*(Tableau1[Surface])) -> 0.00 ha | I16: =IF(I$2>0,((SUMPRODUCT((Tableau1[Client]=$A16)*(Tableau1[Oppération]=Résultat!I$2)*(Tableau1[Surface])))*VLOOKUP(I$2,Tableau6[],2,0))," ") -> 0 | J16: =SUMPRODUCT((Tableau1[Client]=Tableau2[[#This Row],[Clients]])*(Tableau1[Oppération]=Résultat!J15)*(Tableau1[Surface])) -> 0.00 ha | K16: =IF(K$2>0,((SUMPRODUCT((Tableau1[Client]=$A16)*(Tableau1[Oppération]=Résultat!K$2)*(Tableau1[Surface])))*VLOOKUP(K$2,Tableau6[],2,0))," ") -> 0 | L16: 006.00 | M16: =IF(M$2>0,((SUMPRODUCT((Tableau1[Client]=$A16)*(Tableau1[Oppération]=Résultat!M$2)*(Tableau1[Surface])))*VLOOKUP(M$2,Tableau6[],2,0))," ") ->  | N16: =SUMPRODUCT((Tableau1[Client]=Tableau2[[#This Row],[Clients]])*(Tableau1[Oppération]=Résultat!N15)*(Tableau1[Surface])) -> 0.00 ha
A17: =Base!AD16 -> 0 | B17: =SUMPRODUCT((Tableau1[Client]=Tableau2[[#This Row],[Clients]])*(Tableau1[Oppération]=Résultat!$B$2)*(Tableau1[Surface])) -> 0.00 ha | C17: =IF(C$2>0,((SUMPRODUCT((Tableau1[Client]=$A17)*(Tableau1[Oppération]=Résultat!C$2)*(Tableau1[Surface])))*VLOOKUP(C$2,Tableau6[],2,0))," ") -> 0 | D17: =SUMPRODUCT((Tableau1[Client]=Tableau2[[#This Row],[Clients]])*(Tableau1[Oppération]=Résultat!$D$2)*(Tableau1[Surface])) -> 0.00 ha | E17: =IF(E$2>0,((SUMPRODUCT((Tableau1[Client]=$A17)*(Tableau1[Oppération]=Résultat!E$2)*(Tableau1[Surface])))*VLOOKUP(E$2,Tableau6[],2,0))," ") -> 0 | F17: =SUMPRODUCT((Tableau1[Client]=Tableau2[[#This Row],[Clients]])*(Tableau1[Oppération]=Résultat!$F$2)*(Tableau1[Surface])) -> 0.00 ha | G17: =IF(G$2>0,((SUMPRODUCT((Tableau1[Client]=$A17)*(Tableau1[Oppération]=Résultat!G$2)*(Tableau1[Surface])))*VLOOKUP(G$2,Tableau6[],2,0))," ") -> 0 | H17: =SUMPRODUCT((Tableau1[Client]=Tableau2[[#This Row],[Clients]])*(Tableau1[Oppération]=Résultat!$H$2)*(Tableau1[Surface])) -> 0.00 ha | I17: =IF(I$2>0,((SUMPRODUCT((Tableau1[Client]=$A17)*(Tableau1[Oppération]=Résultat!I$2)*(Tableau1[Surface])))*VLOOKUP(I$2,Tableau6[],2,0))," ") -> 0 | J17: =SUMPRODUCT((Tableau1[Client]=Tableau2[[#This Row],[Clients]])*(Tableau1[Oppération]=Résultat!J16)*(Tableau1[Surface])) -> 0.00 ha | K17: =IF(K$2>0,((SUMPRODUCT((Tableau1[Client]=$A17)*(Tableau1[Oppération]=Résultat!K$2)*(Tableau1[Surface])))*VLOOKUP(K$2,Tableau6[],2,0))," ") -> 0 | L17: 007.00 | M17: =IF(M$2>0,((SUMPRODUCT((Tableau1[Client]=$A17)*(Tableau1[Oppération]=Résultat!M$2)*(Tableau1[Surface])))*VLOOKUP(M$2,Tableau6[],2,0))," ") ->  | N17: =SUMPRODUCT((Tableau1[Client]=Tableau2[[#This Row],[Clients]])*(Tableau1[Oppération]=Résultat!N16)*(Tableau1[Surface])) -> 0.00 ha
A18: =Base!AD17 -> 0 | B18: =SUMPRODUCT((Tableau1[Client]=Tableau2[[#This Row],[Clients]])*(Tableau1[Oppération]=Résultat!$B$2)*(Tableau1[Surface])) -> 0.00 ha | C18: =IF(C$2>0,((SUMPRODUCT((Tableau1[Client]=$A18)*(Tableau1[Oppération]=Résultat!C$2)*(Tableau1[Surface])))*VLOOKUP(C$2,Tableau6[],2,0))," ") -> 0 | D18: =SUMPRODUCT((Tableau1[Client]=Tableau2[[#This Row],[Clients]])*(Tableau1[Oppération]=Résultat!$D$2)*(Tableau1[Surface])) -> 0.00 ha | E18: =IF(E$2>0,((SUMPRODUCT((Tableau1[Client]=$A18)*(Tableau1[Oppération]=Résultat!E$2)*(Tableau1[Surface])))*VLOOKUP(E$2,Tableau6[],2,0))," ") -> 0 | F18: =SUMPRODUCT((Tableau1[Client]=Tableau2[[#This Row],[Clients]])*(Tableau1[Oppération]=Résultat!$F$2)*(Tableau1[Surface])) -> 0.00 ha | G18: =IF(G$2>0,((SUMPRODUCT((Tableau1[Client]=$A18)*(Tableau1[Oppération]=Résultat!G$2)*(Tableau1[Surface])))*VLOOKUP(G$2,Tableau6[],2,0))," ") -> 0 | H18: =SUMPRODUCT((Tableau1[Client]=Tableau2[[#This Row],[Clients]])*(Tableau1[Oppération]=Résultat!$H$2)*(Tableau1[Surface])) -> 0.00 ha | I18: =IF(I$2>0,((SUMPRODUCT((Tableau1[Client]=$A18)*(Tableau1[Oppération]=Résultat!I$2)*(Tableau1[Surface])))*VLOOKUP(I$2,Tableau6[],2,0))," ") -> 0 | J18: =SUMPRODUCT((Tableau1[Client]=Tableau2[[#This Row],[Clients]])*(Tableau1[Oppération]=Résultat!J17)*(Tableau1[Surface])) -> 0.00 ha | K18: =IF(K$2>0,((SUMPRODUCT((Tableau1[Client]=$A18)*(Tableau1[Oppération]=Résultat!K$2)*(Tableau1[Surface])))*VLOOKUP(K$2,Tableau6[],2,0))," ") -> 0 | L18: 008.00 | M18: =IF(M$2>0,((SUMPRODUCT((Tableau1[Client]=$A18)*(Tableau1[Oppération]=Résultat!M$2)*(Tableau1[Surface])))*VLOOKUP(M$2,Tableau6[],2,0))," ") ->  | N18: =SUMPRODUCT((Tableau1[Client]=Tableau2[[#This Row],[Clients]])*(Tableau1[Oppération]=Résultat!N17)*(Tableau1[Surface])) -> 0.00 ha
A19: =Base!AD18 -> 0 | B19: =SUMPRODUCT((Tableau1[Client]=Tableau2[[#This Row],[Clients]])*(Tableau1[Oppération]=Résultat!$B$2)*(Tableau1[Surface])) -> 0.00 ha | C19: =IF(C$2>0,((SUMPRODUCT((Tableau1[Client]=$A19)*(Tableau1[Oppération]=Résultat!C$2)*(Tableau1[Surface])))*VLOOKUP(C$2,Tableau6[],2,0))," ") -> 0 | D19: =SUMPRODUCT((Tableau1[Client]=Tableau2[[#This Row],[Clients]])*(Tableau1[Oppération]=Résultat!$D$2)*(Tableau1[Surface])) -> 0.00 ha | E19: =IF(E$2>0,((SUMPRODUCT((Tableau1[Client]=$A19)*(Tableau1[Oppération]=Résultat!E$2)*(Tableau1[Surface])))*VLOOKUP(E$2,Tableau6[],2,0))," ") -> 0 | F19: =SUMPRODUCT((Tableau1[Client]=Tableau2[[#This Row],[Clients]])*(Tableau1[Oppération]=Résultat!$F$2)*(Tableau1[Surface])) -> 0.00 ha | G19: =IF(G$2>0,((SUMPRODUCT((Tableau1[Client]=$A19)*(Tableau1[Oppération]=Résultat!G$2)*(Tableau1[Surface])))*VLOOKUP(G$2,Tableau6[],2,0))," ") -> 0 | H19: =SUMPRODUCT((Tableau1[Client]=Tableau2[[#This Row],[Clients]])*(Tableau1[Oppération]=Résultat!$H$2)*(Tableau1[Surface])) -> 0.00 ha | I19: =IF(I$2>0,((SUMPRODUCT((Tableau1[Client]=$A19)*(Tableau1[Oppération]=Résultat!I$2)*(Tableau1[Surface])))*VLOOKUP(I$2,Tableau6[],2,0))," ") -> 0 | J19: =SUMPRODUCT((Tableau1[Client]=Tableau2[[#This Row],[Clients]])*(Tableau1[Oppération]=Résultat!J18)*(Tableau1[Surface])) -> 0.00 ha | K19: =IF(K$2>0,((SUMPRODUCT((Tableau1[Client]=$A19)*(Tableau1[Oppération]=Résultat!K$2)*(Tableau1[Surface])))*VLOOKUP(K$2,Tableau6[],2,0))," ") -> 0 | L19: 009.00 | M19: =IF(M$2>0,((SUMPRODUCT((Tableau1[Client]=$A19)*(Tableau1[Oppération]=Résultat!M$2)*(Tableau1[Surface])))*VLOOKUP(M$2,Tableau6[],2,0))," ") ->  | N19: =SUMPRODUCT((Tableau1[Client]=Tableau2[[#This Row],[Clients]])*(Tableau1[Oppération]=Résultat!N18)*(Tableau1[Surface])) -> 0.00 ha
A20: =Base!AD19 -> 0 | B20: =SUMPRODUCT((Tableau1[Client]=Tableau2[[#This Row],[Clients]])*(Tableau1[Oppération]=Résultat!$B$2)*(Tableau1[Surface])) -> 0.00 ha | C20: =IF(C$2>0,((SUMPRODUCT((Tableau1[Client]=$A20)*(Tableau1[Oppération]=Résultat!C$2)*(Tableau1[Surface])))*VLOOKUP(C$2,Tableau6[],2,0))," ") -> 0 | D20: =SUMPRODUCT((Tableau1[Client]=Tableau2[[#This Row],[Clients]])*(Tableau1[Oppération]=Résultat!$D$2)*(Tableau1[Surface])) -> 0.00 ha | E20: =IF(E$2>0,((SUMPRODUCT((Tableau1[Client]=$A20)*(Tableau1[Oppération]=Résultat!E$2)*(Tableau1[Surface])))*VLOOKUP(E$2,Tableau6[],2,0))," ") -> 0 | F20: =SUMPRODUCT((Tableau1[Client]=Tableau2[[#This Row],[Clients]])*(Tableau1[Oppération]=Résultat!$F$2)*(Tableau1[Surface])) -> 0.00 ha | G20: =IF(G$2>0,((SUMPRODUCT((Tableau1[Client]=$A20)*(Tableau1[Oppération]=Résultat!G$2)*(Tableau1[Surface])))*VLOOKUP(G$2,Tableau6[],2,0))," ") -> 0 | H20: =SUMPRODUCT((Tableau1[Client]=Tableau2[[#This Row],[Clients]])*(Tableau1[Oppération]=Résultat!$H$2)*(Tableau1[Surface])) -> 0.00 ha | I20: =IF(I$2>0,((SUMPRODUCT((Tableau1[Client]=$A20)*(Tableau1[Oppération]=Résultat!I$2)*(Tableau1[Surface])))*VLOOKUP(I$2,Tableau6[],2,0))," ") -> 0 | J20: =SUMPRODUCT((Tableau1[Client]=Tableau2[[#This Row],[Clients]])*(Tableau1[Oppération]=Résultat!J19)*(Tableau1[Surface])) -> 0.00 ha | K20: =IF(K$2>0,((SUMPRODUCT((Tableau1[Client]=$A20)*(Tableau1[Oppération]=Résultat!K$2)*(Tableau1[Surface])))*VLOOKUP(K$2,Tableau6[],2,0))," ") -> 0 | L20: 010.00 | M20: =IF(M$2>0,((SUMPRODUCT((Tableau1[Client]=$A20)*(Tableau1[Oppération]=Résultat!M$2)*(Tableau1[Surface])))*VLOOKUP(M$2,Tableau6[],2,0))," ") ->  | N20: =SUMPRODUCT((Tableau1[Client]=Tableau2[[#This Row],[Clients]])*(Tableau1[Oppération]=Résultat!N19)*(Tableau1[Surface])) -> 0.00 ha
B21: =SUBTOTAL(109,Tableau2[Colonne1]) -> 16.70 ha | C21: =SUBTOTAL(109,Tableau2[Colonne8]) -> 1,503.00 € | D21: =SUBTOTAL(109,Tableau2[Colonne3]) -> 40.00 ha | E21: =SUBTOTAL(109,Tableau2[Colonne9]) -> 600.00 € | F21: =SUBTOTAL(109,Tableau2[Colonne2]) -> 77.35 ha | G21: =SUBTOTAL(109,Tableau2[Colonne10]) -> 6,961.50 € | H21: =SUBTOTAL(109,Tableau2[Colonne4]) -> 55.00 ha | I21: =SUBTOTAL(109,Tableau2[Colonne11]) -> 825.00 € | J21: =SUBTOTAL(109,Tableau2[Colonne5]) -> 0.00 ha | K21: =SUBTOTAL(109,Tableau2[Colonne12]) -> 0 | L21: 000,00 | M21: =SUBTOTAL(109,Tableau2[Colonne13]) -> 0 | N21: =SUBTOTAL(109,Tableau2[Colonne7]) -> 0.00 ha | O21: =SUBTOTAL(109,Tableau2[Colonne14]) -> 0

Sheet Impression
A1: Durand Jérome | P1: Durand Jérome | AA1: Culture | AB1: Surface
J2: Client | K2: Campagne | AA2: Blé | AB2: =IF(AA2>0,SUMIF($R$15:$R$30,AA2,$Q$15:$Q$30)," ") -> 10
J3: Florian | K3: 2013/2014 | AA3: Tournesol | AB3: 30.7
E4: Client | U4: Client | AA4: Maïs | AB4: 55
A5: Campagne | B5: =$K$3 -> 2013/2014 | E5: =VLOOKUP($J$3,Tableau3[],1,0) -> Florian | P5: Campagne | Q5: =$K$3 -> 2013/2014 | U5: =VLOOKUP($J$3,Tableau3[],1,0) -> Florian
E6: =VLOOKUP($J$3,Tableau3[],2,0) -> Le Bouscas | U6: =VLOOKUP($J$3,Tableau3[],2,0) -> Le Bouscas
E7: =VLOOKUP($J$3,Tableau3[],3,0) -> 81600 | F7: =VLOOKUP($J$3,Tableau3[],4,0) -> Cadalen | P7: Assolement | U7: =VLOOKUP($J$3,Tableau3[],3,0) -> 81600 | V7: =VLOOKUP($J$3,Tableau3[],4,0) -> Cadalen
AB9: =IF(AA9>0,SUMIF($R$15:$R$30,AA9,$Q$15:$Q$30)," ") -> 
A10: Date | B10: Oppération | C10: Parcelle | D10: Culture | E10: Surface | F10: Produit | G10: Observation | AB10: =IF(AA10>0,SUMIF($R$15:$R$30,AA10,$Q$15:$Q$30)," ") -> 
A11: 15/12/2014 | B11: Moisson | C11: Sous la route | D11: Blé | E11: 10.00 ha | F11: Urée 46% | AB11: =IF(AA11>0,SUMIF($R$15:$R$30,AA11,$Q$15:$Q$30)," ") -> 
A12: 16/12/2014 | B12: Pulvérisation | C12: La plaine | D12: Tournesol | E12: 20.00 ha
A13: 17/12/2014 | B13: Labour | C13: Coteau | D13: Tournesol | E13: 8.35 ha
A14: 15/12/2014 | B14: Moisson | C14: Devant la maison | D14: Tournesol | E14: 2.35 ha | F14: Axial | P14: Parcelles | Q14: Surface | R14: Culture
A15: 15/12/2014 | B15: Labour | C15: Coteau | D15: Tournesol | E15: 8.35 ha | P15: Coteau | Q15: =IF(P15>0,VLOOKUP(P15,Tableau7[[#All],[Parcelles]:[Campagne]],2,0)," ") -> 8.35 ha | R15: =IF(P15>0,VLOOKUP(P15,Tableau7[[#All],[Parcelles]:[Campagne]],3,0)," ") -> Tournesol
A16: 17/12/2014 | B16: Moisson | C16: sgdsfd | D16: Maïs | E16: 55.00 ha | F16: Urée 46% | P16: Devant la maison | Q16: =IF(P16>0,VLOOKUP(P16,Tableau7[[#All],[Parcelles]:[Campagne]],2,0)," ") -> 2.35 ha | R16: =IF(P16>0,VLOOKUP(P16,Tableau7[[#All],[Parcelles]:[Campagne]],3,0)," ") -> Tournesol
P17: La plaine | Q17: =IF(P17>0,VLOOKUP(P17,Tableau7[[#All],[Parcelles]:[Campagne]],2,0)," ") -> 20.00 ha | R17: =IF(P17>0,VLOOKUP(P17,Tableau7[[#All],[Parcelles]:[Campagne]],3,0)," ") -> Tournesol
P18: sgdsfd | Q18: =IF(P18>0,VLOOKUP(P18,Tableau7[[#All],[Parcelles]:[Campagne]],2,0)," ") -> 55.00 ha | R18: =IF(P18>0,VLOOKUP(P18,Tableau7[[#All],[Parcelles]:[Campagne]],3,0)," ") -> Maïs
H19: =IF(B19>0,(VLOOKUP(B19,Tableau6[],2,0))," ") ->  | P19: Sous la route | Q19: =IF(P19>0,VLOOKUP(P19,Tableau7[[#All],[Parcelles]:[Campagne]],2,0)," ") -> 10.00 ha | R19: =IF(P19>0,VLOOKUP(P19,Tableau7[[#All],[Parcelles]:[Campagne]],3,0)," ") -> Blé
H20: =IF(B20>0,(VLOOKUP(B20,Tableau6[],2,0))," ") ->  | Q20: =IF(P20>0,VLOOKUP(P20,Tableau7[[#All],[Parcelles]:[Campagne]],2,0)," ") ->  | R20: =IF(P20>0,VLOOKUP(P20,Tableau7[[#All],[Parcelles]:[Campagne]],3,0)," ") -> 
H21: =IF(B21>0,(VLOOKUP(B21,Tableau6[],2,0))," ") -> 
H22: =IF(B22>0,(VLOOKUP(B22,Tableau6[],2,0))," ") -> 
H23: =IF(B23>0,(VLOOKUP(B23,Tableau6[],2,0))," ") -> 
H24: =IF(B24>0,(VLOOKUP(B24,Tableau6[],2,0))," ") -> 
H25: =IF(B25>0,(VLOOKUP(B25,Tableau6[],2,0))," ") -> 
H26: =IF(B26>0,(VLOOKUP(B26,Tableau6[],2,0))," ") -> 
H27: =IF(B27>0,(VLOOKUP(B27,Tableau6[],2,0))," ") -> 
H28: =IF(B28>0,(VLOOKUP(B28,Tableau6[],2,0))," ") -> 
H29: =IF(B29>0,(VLOOKUP(B29,Tableau6[],2,0))," ") -> 
H30: =IF(B30>0,(VLOOKUP(B30,Tableau6[],2,0))," ") -> 
H31: =IF(B31>0,(VLOOKUP(B31,Tableau6[],2,0))," ") -> 
H32: =IF(B32>0,(VLOOKUP(B32,Tableau6[],2,0))," ") -> 
H33: =IF(B33>0,(VLOOKUP(B33,Tableau6[],2,0))," ") -> 
H34: =IF(B34>0,(VLOOKUP(B34,Tableau6[],2,0))," ") -> 
A35: Oppération | B35: Surface | C35: Cout / ha | D35: Cout
A36: Labour | B36: =IF(A36>0,SUMIF($B$11:$B$33,A36,$E$11:$E$33)," ") -> 16.70 ha | C36: =IF(A36>0,VLOOKUP(A36,Tableau6[],2,0)," ") -> 90.00 € | D36: =IF(A36>0,(B36*C36)," ") -> 1,503.00 €
A37: Moisson | B37: =IF(A37>0,SUMIF($B$11:$B$33,A37,$E$11:$E$33)," ") -> 67.35 ha | C37: =IF(A37>0,VLOOKUP(A37,Tableau6[],2,0)," ") -> 90.00 € | D37: =IF(A37>0,(B37*C37)," ") -> 6,061.50 €
A38: Pulvérisation | B38: 20.00 ha | C38: =IF(A38>0,VLOOKUP(A38,Tableau6[],2,0)," ") -> 15.00 € | D38: 300.00 €
C39: =IF(A39>0,VLOOKUP(A39,Tableau6[],2,0)," ") -> 
C40: =IF(A40>0,VLOOKUP(A40,Tableau6[],2,0)," ") -> 
C41: =IF(A41>0,VLOOKUP(A41,Tableau6[],2,0)," ") -> 
C42: =IF(A42>0,VLOOKUP(A42,Tableau6[],2,0)," ") -> 
C43: =IF(A43>0,VLOOKUP(A43,Tableau6[],2,0)," ") -> 
C44: =IF(A44>0,VLOOKUP(A44,Tableau6[],2,0)," ") -> 
C45: =IF(A45>0,VLOOKUP(A45,Tableau6[],2,0)," ") -> 
C46: =IF(A46>0,VLOOKUP(A46,Tableau6[],2,0)," ") -> 
C47: =IF(A47>0,VLOOKUP(A47,Tableau6[],2,0)," ") -> 
C48: =IF(A48>0,VLOOKUP(A48,Tableau6[],2,0)," ") -> 
C49: =IF(A49>0,VLOOKUP(A49,Tableau6[],2,0)," ") -> 
A2025: Moi | B2025: 15/12/2014 | C2025: Moisson | D2025: Sous la route | E2025: =VLOOKUP(Tableau1[Parcelle],Tableau7[[Parcelles]:[Campagne]],3,0) ->  | F2025: =VLOOKUP(Tableau1[Parcelle],Tableau7[[Parcelles]:[Campagne]],2,0) ->  | G2025: Urée 46%
A2026: Moi | B2026: 16/12/2014 | C2026: Pulvérisation | D2026: La plaine | E2026: =VLOOKUP(Tableau1[Parcelle],Tableau7[[Parcelles]:[Campagne]],3,0) ->  | F2026: =VLOOKUP(Tableau1[Parcelle],Tableau7[[Parcelles]:[Campagne]],2,0) -> 
